{"text_format":"1","workbook":"xlsx","n_sheets":6,"sheets":["Versiones","INSTRUCTIVO","dia 1","Hoja2","Variables","configuracion"],"not_rendered":{"charts":0,"images":3,"macros":1,"external_links":0,"defined_names":2,"comments":0,"pivot_tables":0},"unopened":[],"bounds":{"document_bytes":16777216,"sheet_cells":100000,"rows_first":2000,"rows_last":500,"rows_between":2000,"halvings":0,"cell_chars":16384,"cell_head_chars":4096},"cells_cut":0,"cells_raw":0,"read":"whole","date_system":"1900"}

{"sheet":"Versiones","index":0,"n_rows":10,"n_cols":39,"rows_kept":10,"cut":false,"hidden":true,"merged":[[1,0,2,1],[1,3,1,6]]}
[]
["SIEMPRE EN LA FILA 4 columna D la ULTIMA VERSION (Para no modificar la formula de la hoja digitador)",null,null,"REGISTRO DE CAMBIOS"]
[null,null,null,"VERSIÓN No.","CAMBIO REALIZADO","AUTOR","VIGENTE DESDE"]
[null,null,null,"20250702i","*Se implementa un macro llamada  ListaEstaciones, la cual se conecta al servicio web (API) para descargar automáticamente una lista de estaciones de muestreo asociadas a distintos proyectos, y las carga en la hoja \"Variables\", actualizando la lista integrada.\n* Se deja una instruccion en la hoja de INSTRUCTIVO, de cuando se genere un error al ingresar un codigo de la estación que no se encuentre en la lista, de darle clip al boton Actualizar Estaciones, para corregirlo\n*Se agrega una hoja llamada configuracion, donde estan unos datos para que funcionen la macro","Antonio Carrasquilla","2025-07-02"]
[null,null,null,"20241018m","Corrección del contenido de la hoja INSTRUCTIVO.","Kevin Moreno","18/10/2024"]
[null,null,null,"20230301i","* Se crea una rutina (macro VBA) que copia las variables del encabezado en la celda seleccionada para la sección de ejecución del muestreo; esto con el fin de capturar el dato de las variables ejecutadas para cada una de las estaciones e insertarlo en la BD.","Jair Valdés","2023-01-03"]
[null,null,null,"20210722m","* Se deja en blanco el ID_EXCEL, para que cuando se realice una descarga de la plantilla, este ID se genere automaticamente\n\nSe corrijen los códigos de las estaciones, por unos ajustes que realizaron en algunas de ellas.",null,"22/07/2021"]
[null,null,null,"20210322i","Ingreso de la plantilla",null,"22/03/2021"]
[]
[null,null,null,null,null,null,null,null,null,null,null,null,null,null,null,null,null,null,null,null,null,null,null,null,null,null,null,null,null,null,null,null,null,null,null,null,null,null,2107229355]

{"sheet":"INSTRUCTIVO","index":1,"n_rows":30,"n_cols":38,"rows_kept":30,"cut":false,"hidden":false,"merged":[[1,13,5,18],[0,13,0,18],[0,3,5,9],[20,3,21,9],[22,3,24,9],[0,10,0,12],[1,10,5,12],[6,3,19,9]]}
[null,null,null,"Recomendaciones generales: \n¡Precaución! Esta es una plantilla programada. Por ende debe seguir las siguientes indicaciones para su correcta carga.\nNo inserte Filas o Columnas.                                                                                                                                                                                               \nLa plantilla al ser guardada por primera vez genera un ID unico,lo cual permite su identificación. Para garantizar el correcto uso de este formato, contiene celdas bloqueadas.                                                                                                                                                                                   \nLa asignación de variables se hace mediante un listado controlado,en la cual solo debe seleccionar las variables a medir y automaticamente se iran agregando los codigos separados por comas. Para mas información consultar hoja \"Variables\".                                          Indique para cada variable su respectivo laboratorio y sustrato.                                                                                                                                      Para el correcto funcionamiento de la hoja debe estar activa la opcion de Excel de ejecutar macros (al abrir la hoja acepte la opcion habilitar macros, mensaje de Excel que aparece en la parte superior de la hoja en un recuadro amarillo). La extensión del archivo debe ser .xlsm\nSe recomienda renombrar el archivo de la siguiente manera: Plan_muestreo_\"Nombredepartamento\"AAAA.xlsm               ",null,null,null,null,null,null,"Al ingreso de las estaciones, tener en cuenta:",null,null,"Al ingreso de las estaciones, tener en cuenta:"]
[null,null,null,null,null,null,null,null,null,null,"1) Al momento de diligenciar los códigos de las estaciones tener en cuenta que para algunas estaciones se modificó el código debido a procesos de verificación internos del programa, si por algún motivo usted diligencia una estación y le arroja un error (#N/A), por favor verifique el listado de las estaciones que se mostrarán a continuación y asigne el \"Código Correcto\" al cual pertenece esa estación:\n",null,null,"2) Si al colocar el código de la estación correctamente y arroja este error \n\n\n\n\n\n\nDarle al boton  Actualizar Estaciones "]
[]
[]
[]
[]
[null,null,null,"Esta plantilla es cargada en la herramientda web en dos momentos, la programación y la ejecución de muestreos. En el primer momento se validan y  leen datos exclusivamente de la programación, por esta razón es necesario llenar los campos obligatorios:                        1. Proyecto                                                                                               2. Responsable\n3. Fecha Inicial de planeación del muestreo                             4. Fecha final de planeación del muestreo\n5. Lugar de muestreo (Codigo del lugar)                                     6. Punto o estacion de Muestreo\n7. Variables a medir (Lista desplegable)                                     8. Laboratorios\n9. Tipo de muestra                                                                               10. Marcar con X las celdas de las columnas  (Color gris) correspondientes a las  variables planificadas\nSi la programación se realizara en diferentes dias, antes de realizar la programación duplique la hoja dia 1 y cambie su nombre al respectivo dia. No inserte Hojas nuevas, DUPLIQUE LA HOJA DIA 1                                                                                                                                                                                                                                                                             En el segundo momento se validan y leen datos de la ejecución, por ende es necesario llenar lo campos obligatorios:                              1. Fecha Inicial de planeación del muestreo(DD/MM/AAAA)                          2. Fecha final de planeación del muestreo(DD/MM/AAAA)\n3. Lugar de muestreo (Codigo del lugar) (DD/MM/AAAA)                                  4. Marcar con X las celdas de las columnas (Color azul) correspondientes a las  variables planificadas (DD/MM/AAAA)\n",null,null,null,null,null,null,"Código Erroneo    ","Nombre estación","Código correcto",null,null,null,null,null,null,null,null,null,null,null,null,null,null,null,null,null,null,null,null,null,null,null,2105065351,2108238987]
[null,null,null,null,null,null,null,null,null,null,"P52003012","Frente a Rios ","P52002030"]
[null,null,null,null,null,null,null,null,null,null,"C44002044","Navio Quebrado Boca","C44003030"]
[null,null,null,null,null,null,null,null,null,null,"C44002045","Navio Quebrado Extremo Sur Occidental","C44003031"]
[null,null,null,null,null,null,null,null,null,null,"C44002046","Navio Quebrado Centro","C44003032"]
[null,null,null,null,null,null,null,null,null,null,"C44002047","Navio Quebrado Sur","C44003033"]
[null,null,null,null,null,null,null,null,null,null,"C47001014","Río Manzanares (Bonda)","C47003111"]
[null,null,null,null,null,null,null,null,null,null,"C08002014","Playas de Salgar","C08001005"]
[null,null,null,null,null,null,null,null,null,null,"C08002002","Playa Salgar","C08001006"]
[null,null,null,null,null,null,null,null,null,null,"C08002001","Playa Pradomar ","C08001007"]
[null,null,null,null,null,null,null,null,null,null,"P76001026","Playa Magüipi","P76002027"]
[null,null,null,null,null,null,null,null,null,null,"P76002079","Frente a Río Raposo ","P76003038"]
[null,null,null,null,null,null,null,null,null,null,"P19001011","Bocana Río Timbiqui","P19002013"]
[null,null,null,null,null,null,null,null,null,null,"P19001012","Frente Norte Río Timbiqui","P19002014"]
[null,null,null,"Si requiere ayuda contacte a:\njefatura.labsis@invemar.org.co  - Se le asignará a una persona para apoyo técnico software",null,null,null,null,null,null,"P19001013","Frente Bocana Río Timbiqui","P19002015"]
[null,null,null,null,null,null,null,null,null,null,"P19001014","Frente Sur Río Timbiqui","P19002016"]
[null,null,null,"El custodio de los datos es el único autorizado para distribuir este conjunto de datos. El observador y el digitador se comprometen a tomar las medidas necesarias para salvaguardar este conjunto de datos de modo que copia de los mismos no sean obtenidas y/o usadas por terceros no relacionados con el propósito para la cual se recolectó.",null,null,null,null,null,null,"C08001001","Playa Puerto Colombia (1)","C08002022"]
[null,null,null,null,null,null,null,null,null,null,"C13002022","Laguna del Cabrero","C13003102"]
[null,null,null,null,null,null,null,null,null,null,"C13002023","Frente Club de Pesca","C13003103"]
[null,null,null,null,null,null,null,null,null,null,"C13002025","Salida Bocana","C13003104"]
[null,null,null,null,null,null,null,null,null,null,"P52003013","Playa Bocagrande","P52002039"]
[null,null,null,null,null,null,null,null,null,null,"P52003011","Bocana Ens. Tumaco","P52002040"]
[null,null,null,null,null,null,null,null,null,null,"P52003015","La Carbonera","P52002041"]
[null,null,null,null,null,null,null,null,null,null,"P52003014","Isla Vaqueria","P52002042"]

{"sheet":"dia 1","index":2,"n_rows":40,"n_cols":36,"rows_kept":40,"cut":false,"hidden":false,"merged":[[5,0,5,37],[0,0,3,31],[0,32,4,37],[4,0,4,2],[4,3,4,26],[4,27,4,31],[6,37,8,37],[7,0,7,1],[7,2,7,10],[7,22,7,24],[8,22,8,24],[8,34,8,36],[6,0,6,1],[6,2,6,10],[6,17,6,20],[7,17,7,20],[9,0,9,37],[10,0,10,2],[10,3,10,4],[10,5,10,16],[10,17,10,22],[10,23,10,26],[10,27,10,34],[10,35,10,37],[6,34,7,36],[6,22,6,24],[6,30,6,33],[7,30,7,33],[8,26,8,33],[6,26,6,29],[7,26,7,29],[8,17,8,20],[11,23,11,26],[11,27,11,34],[11,35,11,37],[11,0,11,2],[11,3,11,4],[11,5,11,6],[11,7,11,8],[11,9,11,10],[11,11,11,12],[12,0,12,2],[12,3,12,4],[12,5,12,6],[12,7,12,8],[12,9,12,10],[12,11,12,12],[11,13,11,14],[11,15,11,16],[11,17,11,22],[12,31,12,32],[12,33,12,34],[12,35,12,37],[12,13,12,14],[12,15,12,16],[12,17,12,18],[12,19,12,20],[12,21,12,22],[12,23,12,24],[13,3,13,4],[13,5,13,6],[13,7,13,8],[13,9,13,10],[13,11,13,12],[13,13,13,14],[12,25,12,26],[12,27,12,28],[12,29,12,30],[14,36,14,37],[13,15,13,16],[13,17,13,18],[13,19,13,20],[13,21,13,22],[13,23,13,24],[13,25,13,26],[13,27,13,28],[13,29,13,30],[13,31,13,32],[13,33,13,34],[13,35,13,37],[15,36,15,37],[26,36,26,37],[32,36,32,37],[33,36,33,37],[34,0,35,31],[34,32,35,34],[34,35,34,37],[35,35,35,37],[16,36,16,37],[17,36,17,37],[18,36,18,37],[19,36,19,37],[20,36,20,37],[21,36,21,37],[22,36,22,37],[23,36,23,37],[30,36,30,37],[31,36,31,37],[24,36,24,37],[25,36,25,37],[27,36,27,37],[28,36,28,37],[29,36,29,37],[38,0,38,37],[39,0,39,37],[36,0,36,2],[36,3,36,16],[36,17,36,20],[36,21,36,37],[37,0,37,4],[37,5,37,16],[37,17,37,37]]}
["                 \n   ",null,null,null,null,null,null,null,null,null,null,null,null,null,null,null,null,null,null,null,null,null,null,null,null,null,null,null,null,null,null,null,"FT - LABCAM - 78                      \n   Versión 04"]
[]
[]
[]
["PAGINA 1 DE 1",null,null,"PLAN DE MUESTREO",null,null,null,null,null,null,null,null,null,null,null,null,null,null,null,null,null,null,null,null,null,null,null,"N° "]
[]
[null,null,null,null,null,null,null,null,null,null,null,null,null,null,null,null,null,"Fecha Inicial de planeación del muestreo: ",null,null,null,null,null,null,null,null,"Fecha final de planeación del muestreo: "]
["Proyecto: ",null,null,null,null,null,null,null,null,null,null,null,null,null,null,null,null,"Fecha inicial de ejecución del muestreo: ",null,null,null,null,null,null,null,null,"Fecha final de ejecución del muestreo: "]
[null,null,null,null,null,null,null,null,null,null,null,null,null,null,null,null,null,"Fecha ejecutada de muestreo: "]
[]
[null,null,null,"In Situ",null,"Fisicoquímicos",null,null,null,null,null,null,null,null,null,null,null,"Metales Pesados",null,null,null,null,null,"Microbiológicos",null,null,null,"Contaminantes Orgánicos",null,null,null,null,null,null,null,"Otros"]
["Laboratorio: "]
["Tipo de muestra (Sustrato_MS_Des) "]
["No.","Lugar de muestreo ","Punto o Estación de Muestreo"]
[{"$f":"IF(B15<>\"\",1,\"\")","v":""},null,{"$f":"IF(B15=\"\",\"\",INDEX(Variables!$V$2:$W$1268,MATCH('dia 1'!B15,Variables!$V$2:$V$1268,0),2))","v":""}]
[{"$f":"IF(B16<>\"\",A15+1,\"\")","v":""},null,{"$f":"IF(B16=\"\",\"\",INDEX(Variables!$V$2:$W$1268,MATCH('dia 1'!B16,Variables!$V$2:$V$1268,0),2))","v":""}]
[{"$f":"IF(B17<>\"\",A16+1,\"\")","v":""},null,{"$f":"IF(B17=\"\",\"\",INDEX(Variables!$V$2:$W$1268,MATCH('dia 1'!B17,Variables!$V$2:$V$1268,0),2))","v":""}]
["",null,{"$f":"IF(B18=\"\",\"\",INDEX(Variables!$V$2:$W$1268,MATCH('dia 1'!B18,Variables!$V$2:$V$1268,0),2))","v":""}]
["",null,{"$f":"IF(B19=\"\",\"\",INDEX(Variables!$V$2:$W$1268,MATCH('dia 1'!B19,Variables!$V$2:$V$1268,0),2))","v":""}]
["",null,{"$f":"IF(B20=\"\",\"\",INDEX(Variables!$V$2:$W$1268,MATCH('dia 1'!B20,Variables!$V$2:$V$1268,0),2))","v":""}]
["",null,{"$f":"IF(B21=\"\",\"\",INDEX(Variables!$V$2:$W$1268,MATCH('dia 1'!B21,Variables!$V$2:$V$1268,0),2))","v":""}]
["",null,{"$f":"IF(B22=\"\",\"\",INDEX(Variables!$V$2:$W$1268,MATCH('dia 1'!B22,Variables!$V$2:$V$1268,0),2))","v":""}]
["",null,{"$f":"IF(B23=\"\",\"\",INDEX(Variables!$V$2:$W$1268,MATCH('dia 1'!B23,Variables!$V$2:$V$1268,0),2))","v":""}]
["",null,{"$f":"IF(B24=\"\",\"\",INDEX(Variables!$V$2:$W$1268,MATCH('dia 1'!B24,Variables!$V$2:$V$1268,0),2))","v":""}]
["",null,{"$f":"IF(B25=\"\",\"\",INDEX(Variables!$V$2:$W$1268,MATCH('dia 1'!B25,Variables!$V$2:$V$1268,0),2))","v":""}]
["",null,{"$f":"IF(B26=\"\",\"\",INDEX(Variables!$V$2:$W$1268,MATCH('dia 1'!B26,Variables!$V$2:$V$1268,0),2))","v":""}]
["",null,{"$f":"IF(B27=\"\",\"\",INDEX(Variables!$V$2:$W$1268,MATCH('dia 1'!B27,Variables!$V$2:$V$1268,0),2))","v":""}]
["",null,{"$f":"IF(B28=\"\",\"\",INDEX(Variables!$V$2:$W$1268,MATCH('dia 1'!B28,Variables!$V$2:$V$1268,0),2))","v":""}]
["",null,{"$f":"IF(B29=\"\",\"\",INDEX(Variables!$V$2:$W$1268,MATCH('dia 1'!B29,Variables!$V$2:$V$1268,0),2))","v":""}]
["",null,{"$f":"IF(B30=\"\",\"\",INDEX(Variables!$V$2:$W$1268,MATCH('dia 1'!B30,Variables!$V$2:$V$1268,0),2))","v":""}]
["",null,{"$f":"IF(B31=\"\",\"\",INDEX(Variables!$V$2:$W$1268,MATCH('dia 1'!B31,Variables!$V$2:$V$1268,0),2))","v":""}]
["",null,{"$f":"IF(B32=\"\",\"\",INDEX(Variables!$V$2:$W$1268,MATCH('dia 1'!B32,Variables!$V$2:$V$1268,0),2))","v":""}]
["",null,{"$f":"IF(B33=\"\",\"\",INDEX(Variables!$V$2:$W$1268,MATCH('dia 1'!B33,Variables!$V$2:$V$1268,0),2))","v":""}]
[{"$f":"SUMPRODUCT(--NOT(ISERROR(VALUE(A15:A33))))","v":0},null,{"$f":"A34","v":0},{"$f":"+COUNTA(D15:D33)","v":0},null,{"$f":"+COUNTA(F15:F33)","v":0},null,{"$f":"+COUNTA(H15:H33)","v":0},null,{"$f":"+COUNTA(J15:J33)","v":0},null,{"$f":"+COUNTA(L15:L33)","v":0},null,{"$f":"+COUNTA(N15:N33)","v":0},null,{"$f":"+COUNTA(P15:P33)","v":0},null,{"$f":"+COUNTA(R15:R33)","v":0},null,{"$f":"+COUNTA(T15:T33)","v":0},null,{"$f":"+COUNTA(V15:V33)","v":0},null,{"$f":"+COUNTA(X15:X33)","v":0},null,{"$f":"+COUNTA(Z15:Z33)","v":0},null,{"$f":"+COUNTA(AB15:AB33)","v":0},null,{"$f":"+COUNTA(AD15:AD33)","v":0},null,{"$f":"+COUNTA(AF15:AF33)","v":0},null,{"$f":"+COUNTA(AH15:AH33)","v":0},null,{"$f":"+COUNTA(AJ15:AJ33)","v":0}]
["Observaciones: (indicar si existió modificación al plan de muestreo original, ej., no fueron tomadas todas las muestras, se desplazaron estaciones del sitio original, etc y explicar.)\n",null,null,null,null,null,null,null,null,null,null,null,null,null,null,null,null,null,null,null,null,null,null,null,null,null,null,null,null,null,null,null,"Modificación al plan de muestreo aprobado por el cliente:",null,null,"Si:"]
[null,null,null,null,null,null,null,null,null,null,null,null,null,null,null,null,null,null,null,null,null,null,null,null,null,null,null,null,null,null,null,null,null,null,null,"No:"]
["Revisión responsable de salida:",null,null,null,null,null,null,null,null,null,null,null,null,null,null,null,null,"Personal planificado"]
["VoBo cliente:",null,null,null,null,"VoBo jefe de LABCAM:"]
["* Realizar las modificaciones necesarias para incluir estaciones y variables."]
["** Señalar con x las variables planificadas a tomar en cada estación y marcar al frente en campo a medida que se van colectando las muestras."]

{"sheet":"Hoja2","index":3,"n_rows":0,"n_cols":0,"rows_kept":0,"cut":false,"hidden":true,"merged":[]}

{"sheet":"Variables","index":4,"n_rows":580,"n_cols":38,"rows_kept":580,"cut":false,"hidden":true,"merged":[[0,4,0,5],[0,7,0,8],[0,10,0,11],[0,13,0,14]]}
["Variable","Codigo","Categoria",null,"Organicos",null,null,"Fisicoquimicos",null,null,"In situ",null,null,"Metales Pesados",null,null,"Microbiologicos",null,null,"PROYECTOS",null,"ESTACIONES",null,null,"SUSTRATOS",null,"LABORATORIOS"]
["Acenafteno","Afte","Contaminantes Orgánicos",null,"Acenafteno","Afte",null,"Amonio","NH4",null,"Conductividad","CON",null,"Aluminio (Al)","AL",null,"Clostridium sp.","CLO",null,"REDCAM",null,"C05003002","(Frente) Km después Rio leon - DGI015",null,"AGUA",null,"INVEMAR"]
["Acenaftileno","Atil","Contaminantes Orgánicos",null,"Acenaftileno","Atil",null,"Carbono Organico Total","COT",null,"Oxigeno Disuelto","OD",null,"Arsénico","AS",null,"Coliformes termotolerantes","CTE",null,"BPIN_ESTADISTICAS_OEICAM",null,"P76002005","003-Bahía de Buenaventura",null,"SEDIMENTO",null,"CORALINA"]
["Aerobios Mesofilos","AEM","Contaminantes Orgánicos",null,"Aerobios Mesofilos","AEM",null,"Clorofila a","CLA",null,"pH","PH",null,"Cadmio","CD",null,"Coliformes totales","CTT",null,null,null,"P76002007","024-Bahía de Buenaventura",null,"ORGANISMO",null,"CORPOGUAJIRA"]
["Aldicarb","P57R","Contaminantes Orgánicos",null,"Aldicarb","P57R",null,"Demanda bioquímica de oxígeno","DBO",null,"Porcentaje de Saturación de Oxígeno","%SO",null,"Cobre","CU",null,"Enterococcus fecales","EFE",null,null,null,"P76002012","050-Bahía de Buenaventura",null,null,null,"CORPAMAG"]
["Aldicarb sulfón","P58R","Contaminantes Orgánicos",null,"Aldicarb sulfón","P58R",null,"Grasas y aceites","GA",null,"Potencial Redox","Rdx",null,"Cromo","CR",null,"Escherichia coli","ECO",null,null,null,"P76002018","067-Bahía de Buenaventura",null,null,null,"CRA"]
["Aldrin","ALD2","Contaminantes Orgánicos",null,"Aldrin","ALD2",null,"Materia Orgánica","MO",null,"Salinidad","SAL",null,"Cromo Hexavalente","Cr6+",null,"Pseudomona sp.","PSE",null,null,null,"P76002019","069-Bahía de Buenaventura",null,null,null,"CARDIQUE",null,null,null,null,null,null,null,null," 20 12 1 5694",null,2507024063]
["Aldrines: Endrin+diendrin+aldrin","ALD","Contaminantes Orgánicos",null,"Aldrines: Endrin+diendrin+aldrin","ALD",null,"Nitrato","NO3",null,"Temperatura","TEM",null,"Hierro","FE",null,null,null,null,null,null,"C05002014","1 Km Adentro Río Turbo - Bocatoma - DGI041",null,null,null,"CARSUCRE"]
["alpha-clordano","P01","Contaminantes Orgánicos",null,"alpha-clordano","P01",null,"Nitratos","N-NO3",null,"Transparencia","TRA",null,"Magnesio","MG",null,null,null,null,null,null,"C05003018","1 Km Arriba rio Currulao - DGI012",null,null,null,"CVS"]
["alpha-HCH","P12","Contaminantes Orgánicos",null,"alpha-HCH","P12",null,"Nitrito","NO2",null,"Turbiedad","TUR",null,"Manganeso","MN",null,null,null,null,null,null,"C05003015","1 Km arriba del Río León - DGI014",null,null,null,"CORPOURABA"]
["Antraceno","Antr","Contaminantes Orgánicos",null,"Antraceno","Antr",null,"Nitritos","N-NO2",null,null,null,null,"Mercurio","HG",null,null,null,null,null,null,"C05001012","1 km arriba San Juan - Arboletes-DGI02",null,null,null,"CODECHOCO"]
["Arenas finas - % 125 µm","ArF","Contaminantes Orgánicos",null,"Arenas finas - % 125 µm","ArF",null,"Nitritos+Nitratos","NO2+NO3",null,null,null,null,"Niquel","NI",null,null,null,null,null,null,"C13004027","10 Matunilla 1 Km arriba casita pequeña ladrillo rojo",null,null,null,"CVC"]
["Arenas gruesas - % 0,5 mm","ArGr","Contaminantes Orgánicos",null,"Arenas gruesas - % 0,5 mm","ArGr",null,"Nitrógeno amoniacal","N-NH3",null,null,null,null,"Plomo","PB",null,null,null,null,null,null,"P76002032","113-Bahía de Buenaventura"]
["Arenas medias - % 250 µm","ArM","Contaminantes Orgánicos",null,"Arenas medias - % 250 µm","ArM",null,"Nut. Amonio","N-NH4",null,null,null,null,"Zinc","ZN",null,null,null,null,null,null,"P76002035","132-Bahía de Buenaventura"]
["Arenas muy finas - % 63 µm","ArMF","Contaminantes Orgánicos",null,"Arenas muy finas - % 63 µm","ArMF",null,"Nut. Ortofosfatos","P-PO4",null,null,null,null,null,null,null,null,null,null,null,null,"P76002039","151-Bahía de Buenaventura"]
["Arenas muy gruesas - % 1 mm","ArMG","Contaminantes Orgánicos",null,"Arenas muy gruesas - % 1 mm","ArMG",null,"Ortofosfato","PO4",null,null,null,null,null,null,null,null,null,null,null,null,"P76002042","155-Bahía de Buenaventura"]
["Azoxistrobín","Q12","Contaminantes Orgánicos",null,"Azoxistrobín","Q12",null,"Silicatos","SIL",null,null,null,null,null,null,null,null,null,null,null,null,"P76002044","163-Bahía de Buenaventura"]
["Bendiocarb","P59R","Contaminantes Orgánicos",null,"Bendiocarb","P59R",null,"Silicio","SI",null,null,null,null,null,null,null,null,null,null,null,null,"P76002046","172-Bahía de Buenaventura"]
["Benzo(a) Antraceno","Bant","Contaminantes Orgánicos",null,"Benzo(a) Antraceno","Bant",null,"Solidos disueltos totales","SDT",null,null,null,null,null,null,null,null,null,null,null,null,"P76002048","178-Bahía de Buenaventura"]
["Benzo(a) Pireno","Bapi","Contaminantes Orgánicos",null,"Benzo(a) Pireno","Bapi",null,"Sólidos suspendidos fijos","SSF",null,null,null,null,null,null,null,null,null,null,null,null,"P76002049","183-Bahía de Buenaventura"]
["Benzo(b) Fluoranteno","Bbfl","Contaminantes Orgánicos",null,"Benzo(b) Fluoranteno","Bbfl",null,"Sólidos Suspendidos Totales","SST",null,null,null,null,null,null,null,null,null,null,null,null,"P76002050","189-Bahía de Buenaventura"]
["Benzo(g,h,i) Perilene","Bper","Contaminantes Orgánicos",null,"Benzo(g,h,i) Perilene","Bper",null,"Sólidos suspendidos volátiles","SSV",null,null,null,null,null,null,null,null,null,null,null,null,"P76002051","190-Bahía de Buenaventura"]
["Benzo(k) Fluoranteno","Bkfl","Contaminantes Orgánicos",null,"Benzo(k) Fluoranteno","Bkfl",null,"Sólidos totales","STo",null,null,null,null,null,null,null,null,null,null,null,null,"P76002052","191-Bahía de Buenaventura"]
["beta-HCH","P13","Contaminantes Orgánicos",null,"beta-HCH","P13",null,"Sulfatos","Sulf",null,null,null,null,null,null,null,null,null,null,null,null,"P76002053","192-Bahía de Buenaventura"]
["Bolstar","P69","Contaminantes Orgánicos",null,"Bolstar","P69",null,"Sulfatos","SO4",null,null,null,null,null,null,null,null,null,null,null,null,"P76002054","197-Bahía de Buenaventura"]
["Bromacil","P27","Contaminantes Orgánicos",null,"Bromacil","P27",null,null,null,null,null,null,null,null,null,null,null,null,null,null,null,"P76002055","200-Bahía de Buenaventura"]
["Carbosulfan","P60R","Contaminantes Orgánicos",null,"Carbosulfan","P60R",null,null,null,null,null,null,null,null,null,null,null,null,null,null,null,"P76002057","206-Bahía de Buenaventura"]
["Cis-nanocloro","P19","Contaminantes Orgánicos",null,"Cis-nanocloro","P19",null,null,null,null,null,null,null,null,null,null,null,null,null,null,null,"P76002058","210-Bahía de Buenaventura"]
["Cis-Permetrina","P30","Contaminantes Orgánicos",null,"Cis-Permetrina","P30",null,null,null,null,null,null,null,null,null,null,null,null,null,null,null,"P76002059","211-Bahía de Buenaventura"]
["Clorotalonil","P32","Contaminantes Orgánicos",null,"Clorotalonil","P32",null,null,null,null,null,null,null,null,null,null,null,null,null,null,null,"P76002060","213-Bahía de Buenaventura"]
["Clorpirifos","P31","Contaminantes Orgánicos",null,"Clorpirifos","P31",null,null,null,null,null,null,null,null,null,null,null,null,null,null,null,"P76002061","217-Bahía de Buenaventura"]
["Clorpirifos /Dursban","P63","Contaminantes Orgánicos",null,"Clorpirifos /Dursban","P63",null,null,null,null,null,null,null,null,null,null,null,null,null,null,null,"P76002062","221-Bahía de Buenaventura"]
["Co-Ral","P64R","Contaminantes Orgánicos",null,"Co-Ral","P64R",null,null,null,null,null,null,null,null,null,null,null,null,null,null,null,"P76002063","223-Bahía de Buenaventura"]
["Criseno","Cris","Contaminantes Orgánicos",null,"Criseno","Cris",null,null,null,null,null,null,null,null,null,null,null,null,null,null,null,"P76002065","227-Bahía de Buenaventura"]
["DDD Total (1,4-DDD + 4,4-DDD)","DDD","Contaminantes Orgánicos",null,"DDD Total (1,4-DDD + 4,4-DDD)","DDD",null,null,null,null,null,null,null,null,null,null,null,null,null,null,null,"P76002066","229-Bahía de Buenaventura"]
["DDE total (1,4-DDE + 4,4-DDE)","DDE","Contaminantes Orgánicos",null,"DDE total (1,4-DDE + 4,4-DDE)","DDE",null,null,null,null,null,null,null,null,null,null,null,null,null,null,null,"P76002067","232-Bahía de Buenaventura"]
["DDT + metabolitos (DDT + DDD + DDE)","DTS","Contaminantes Orgánicos",null,"DDT + metabolitos (DDT + DDD + DDE)","DTS",null,null,null,null,null,null,null,null,null,null,null,null,null,null,null,"P76002069","239-Bahía de Buenaventura"]
["DDT Total: DDT + metabolitos (DDT + DDD + DDE)","DDT","Contaminantes Orgánicos",null,"DDT Total: DDT + metabolitos (DDT + DDD + DDE)","DDT",null,null,null,null,null,null,null,null,null,null,null,null,null,null,null,"C47003001","Aeropuerto Santa Marta",null,null,null,6556,"ESTADISTICO","JJOSE CAMPO",null,null,null,"MAGDALENA"]
["DEF defoliant -Tribufos","P65R","Contaminantes Orgánicos",null,"DEF defoliant -Tribufos","P65R",null,null,null,null,null,null,null,null,null,null,null,null,null,null,null,"C88003004","Agua Dulce",null,null,null,6556,"ESTADISTICO","JJOSE CAMPO",null,null,null,"MAGDALENA"]
["delta-HCH","P14","Contaminantes Orgánicos",null,"delta-HCH","P14",null,null,null,null,null,null,null,null,null,null,null,null,null,null,null,"P76002102","Agua Residual",null,null,null,6556,"ESTADISTICO","OMAR CARREÑO",null,null,null,"BOLIVAR"]
["Demeton O","P72","Contaminantes Orgánicos",null,"Demeton O","P72",null,null,null,null,null,null,null,null,null,null,null,null,null,null,null,"C08003007","Aguas Abajo Base Naval (CRA - 17)",null,null,null,6556,"ESTADISTICO","OMAR CARREÑO",null,null,null,"BOLIVAR"]
["Demeton S","P71","Contaminantes Orgánicos",null,"Demeton S","P71",null,null,null,null,null,null,null,null,null,null,null,null,null,null,null,"C13003050","Alcalis",null,null,null,6556,"ESTADISTICO","JJOSE CAMPO",null,null,null,"MAGDALENA"]
["Diazinon","P33","Contaminantes Orgánicos",null,"Diazinon","P33",null,null,null,null,null,null,null,null,null,null,null,null,null,null,null,"C88001005","Alcantarillado",null,null,null,6556,"ESTADISTICO","JJOSE CAMPO",null,null,null,"MAGDALENA"]
["Dibenzo(a,h) Antraceno","Diah","Contaminantes Orgánicos",null,"Dibenzo(a,h) Antraceno","Diah",null,null,null,null,null,null,null,null,null,null,null,null,null,null,null,"C47003012","Alcatraces"]
["Dichlorvos","P55","Contaminantes Orgánicos",null,"Dichlorvos","P55",null,null,null,null,null,null,null,null,null,null,null,null,null,null,null,"P19003003","Antiguo Muelle era planchon emisario"]
["Dieldrin","P02","Contaminantes Orgánicos",null,"Dieldrin","P02",null,null,null,null,null,null,null,null,null,null,null,null,null,null,null,"P52002029","Arco el Morro"]
["Difeconazole","P89","Contaminantes Orgánicos",null,"Difeconazole","P89",null,null,null,null,null,null,null,null,null,null,null,null,null,null,null,"C13002030","Arroyo Tabacal Adentro"]
["Dimethoate","P60","Contaminantes Orgánicos",null,"Dimethoate","P60",null,null,null,null,null,null,null,null,null,null,null,null,null,null,null,"C70002032","Arroyo Villeros"]
["Disulfoton","P73","Contaminantes Orgánicos",null,"Disulfoton","P73",null,null,null,null,null,null,null,null,null,null,null,null,null,null,null,"P76002108","BV01-Estero Aguacate-Gamboa"]
["Diuron","P34","Contaminantes Orgánicos",null,"Diuron","P34",null,null,null,null,null,null,null,null,null,null,null,null,null,null,null,"P76002113","BV010-Canal centro"]
["Endosulfan I","P07","Contaminantes Orgánicos",null,"Endosulfan I","P07",null,null,null,null,null,null,null,null,null,null,null,null,null,null,null,"P76002117","BV011-Piedra Piedra"]
["Endosulfan II","P08","Contaminantes Orgánicos",null,"Endosulfan II","P08",null,null,null,null,null,null,null,null,null,null,null,null,null,null,null,"P76002112","BV012-Río Potedó"]
["Endosulfan sulfato","P09","Contaminantes Orgánicos",null,"Endosulfan sulfato","P09",null,null,null,null,null,null,null,null,null,null,null,null,null,null,null,"P76002118","BV013-canal Sur"]
["Endrin","END","Contaminantes Orgánicos",null,"Endrin","END",null,null,null,null,null,null,null,null,null,null,null,null,null,null,null,"P76002119","BV014-Río Anchicayá"]
["Endrin","P06","Contaminantes Orgánicos",null,"Endrin","P06",null,null,null,null,null,null,null,null,null,null,null,null,null,null,null,"P76002120","BV015-Externo"]
["Endrin Aldehido","P10","Contaminantes Orgánicos",null,"Endrin Aldehido","P10",null,null,null,null,null,null,null,null,null,null,null,null,null,null,null,"P76002114","BV02-Puente El Piñal"]
["Endrin Cetona","P11","Contaminantes Orgánicos",null,"Endrin Cetona","P11",null,null,null,null,null,null,null,null,null,null,null,null,null,null,null,"P76002107","BV04-Boca Aguadulce"]
["EPN","P70","Contaminantes Orgánicos",null,"EPN","P70",null,null,null,null,null,null,null,null,null,null,null,null,null,null,null,"P76002115","BV05-Cascajal Sur"]
["Ethoprop","P57","Contaminantes Orgánicos",null,"Ethoprop","P57",null,null,null,null,null,null,null,null,null,null,null,null,null,null,null,"P76002116","BV06-Río Dagua"]
["Etíl paratión","P66R","Contaminantes Orgánicos",null,"Etíl paratión","P66R",null,null,null,null,null,null,null,null,null,null,null,null,null,null,null,"P76002111","BV08-Río Limones"]
["Etión","P67R","Contaminantes Orgánicos",null,"Etión","P67R",null,null,null,null,null,null,null,null,null,null,null,null,null,null,null,"P76002110","BV09-Isla Cangrejo"]
["Fenaminfos","P35","Contaminantes Orgánicos",null,"Fenaminfos","P35",null,null,null,null,null,null,null,null,null,null,null,null,null,null,null,"P76002109","BV7- Canal Norte"]
["Fenantreno","Fena","Contaminantes Orgánicos",null,"Fenantreno","Fena",null,null,null,null,null,null,null,null,null,null,null,null,null,null,null,"C47002002","Bahía Chengue"]
["Fenthion","P68R","Contaminantes Orgánicos",null,"Fenthion","P68R",null,null,null,null,null,null,null,null,null,null,null,null,null,null,null,"C05003046","Bahía Colombia"]
["Fenthion","P64","Contaminantes Orgánicos",null,"Fenthion","P64",null,null,null,null,null,null,null,null,null,null,null,null,null,null,null,"C88002001","Bahía El Cove"]
["Feopigmentos","PIG","Contaminantes Orgánicos",null,"Feopigmentos","PIG",null,null,null,null,null,null,null,null,null,null,null,null,null,null,null,"C44002048","Bahía Hondita"]
["Fluoranteno","FluT","Contaminantes Orgánicos",null,"Fluoranteno","FluT",null,null,null,null,null,null,null,null,null,null,null,null,null,null,null,"C88001006","Bahía Hooker (manglar)"]
["Fluoreno","FluR","Contaminantes Orgánicos",null,"Fluoreno","FluR",null,null,null,null,null,null,null,null,null,null,null,null,null,null,null,"C88001007","Bahía Hooker (plantas)"]
["Forate","P69R","Contaminantes Orgánicos",null,"Forate","P69R",null,null,null,null,null,null,null,null,null,null,null,null,null,null,null,"C27001025","Bahía Pino Roa"]
["Gamma-clordano","P18","Contaminantes Orgánicos",null,"Gamma-clordano","P18",null,null,null,null,null,null,null,null,null,null,null,null,null,null,null,"P27002004","Bahía Solano (ESSO)"]
["Gravas - 2% mm","Grav","Contaminantes Orgánicos",null,"Gravas - 2% mm","Grav",null,null,null,null,null,null,null,null,null,null,null,null,null,null,null,"C13001010","Balneario Boca Canoa -3 (playa Boca Canoa)"]
["Gutión","P70R","Contaminantes Orgánicos",null,"Gutión","P70R",null,null,null,null,null,null,null,null,null,null,null,null,null,null,null,"C13004025","Banco de Coral frente a Isla Arena - 8"]
["Heptacloro","P15","Contaminantes Orgánicos",null,"Heptacloro","P15",null,null,null,null,null,null,null,null,null,null,null,null,null,null,null,"C13003091","Basic B1"]
["Heptacloro epóxido","P16","Contaminantes Orgánicos",null,"Heptacloro epóxido","P16",null,null,null,null,null,null,null,null,null,null,null,null,null,null,null,"C13003092","Basic B3"]
["Heptacloro total (heptacloro + heptacloroepóxido)","HEP","Contaminantes Orgánicos",null,"Heptacloro total (heptacloro + heptacloroepóxido)","HEP",null,null,null,null,null,null,null,null,null,null,null,null,null,null,null,"C13004037","Basic ZP1"]
["Hexaclorociclohexano Total","HCH","Contaminantes Orgánicos",null,"Hexaclorociclohexano Total","HCH",null,null,null,null,null,null,null,null,null,null,null,null,null,null,null,"C88003002","Basurero"]
["Hidrocarburos aromáticos totales","HAT","Contaminantes Orgánicos",null,"Hidrocarburos aromáticos totales","HAT",null,null,null,null,null,null,null,null,null,null,null,null,null,null,null,"C13002028","Boca Arroyo La Hormiga"]
["Hidrocarburos del petróleo Disueltos y Dispersos equivalentes al Criseno","HPDD","Contaminantes Orgánicos",null,"Hidrocarburos del petróleo Disueltos y Dispersos equivalentes al Criseno","HPDD",null,null,null,null,null,null,null,null,null,null,null,null,null,null,null,"C13002029","Boca Arroyo Tabacal"]
["Hidrocarburos Totales","HT","Contaminantes Orgánicos",null,"Hidrocarburos Totales","HT",null,null,null,null,null,null,null,null,null,null,null,null,null,null,null,"C47005037","Boca Caño Aguas Negras (PRAL)"]
["Hidrocarburos Totales (alifáticos + aromáticos)","HCT","Contaminantes Orgánicos",null,"Hidrocarburos Totales (alifáticos + aromáticos)","HCT",null,null,null,null,null,null,null,null,null,null,null,null,null,null,null,"C08003043","Boca Caño Clarin"]
["Imazalil","P53R","Contaminantes Orgánicos",null,"Imazalil","P53R",null,null,null,null,null,null,null,null,null,null,null,null,null,null,null,"C23001051","Boca Distrito riego Cantarillo"]
["Indeno(1,2,3-cd) Pireno","Incd","Contaminantes Orgánicos",null,"Indeno(1,2,3-cd) Pireno","Incd",null,null,null,null,null,null,null,null,null,null,null,null,null,null,null,"P76003002","Boca R. Raposo"]
["Lindano (gamma-HCH)","LIN","Contaminantes Orgánicos",null,"Lindano (gamma-HCH)","LIN",null,null,null,null,null,null,null,null,null,null,null,null,null,null,null,"C47005093","Boca Rió Aracataca - Caño Pancú"]
["Lodos","Lodo","Contaminantes Orgánicos",null,"Lodos","Lodo",null,null,null,null,null,null,null,null,null,null,null,null,null,null,null,"P76002001","Boca Río Anchicayá"]
["Lodos - % <63 µm","Lodo_63","Contaminantes Orgánicos",null,"Lodos - % <63 µm","Lodo_63",null,null,null,null,null,null,null,null,null,null,null,null,null,null,null,"P76003027","Boca Río Cajambre"]
["Malation","P62","Contaminantes Orgánicos",null,"Malation","P62",null,null,null,null,null,null,null,null,null,null,null,null,null,null,null,"P76002002","Boca Río Dagua"]
["Malatión","P71R","Contaminantes Orgánicos",null,"Malatión","P71R",null,null,null,null,null,null,null,null,null,null,null,null,null,null,null,"P76003030","Boca Río Mayorquín"]
["Metamidofos","P72R","Contaminantes Orgánicos",null,"Metamidofos","P72R",null,null,null,null,null,null,null,null,null,null,null,null,null,null,null,"P76003033","Boca Río Naya"]
["Methyl Parathion","P100","Contaminantes Orgánicos",null,"Methyl Parathion","P100",null,null,null,null,null,null,null,null,null,null,null,null,null,null,null,"P76002003","Boca Río Potedo"]
["Metil Paration","P36","Contaminantes Orgánicos",null,"Metil Paration","P36",null,null,null,null,null,null,null,null,null,null,null,null,null,null,null,"P76001021","Boca Río San Juan"]
["Metiocarb","P61R","Contaminantes Orgánicos",null,"Metiocarb","P61R",null,null,null,null,null,null,null,null,null,null,null,null,null,null,null,"C23001001","Boca Río Sinú - Tinajones"]
["Metolaclor","P54R","Contaminantes Orgánicos",null,"Metolaclor","P54R",null,null,null,null,null,null,null,null,null,null,null,null,null,null,null,"P76003036","Boca Río Yurumanguí"]
["Metomil","P62R","Contaminantes Orgánicos",null,"Metomil","P62R",null,null,null,null,null,null,null,null,null,null,null,null,null,null,null,"C27001030","Boca Tarena (río Atrato)"]
["Metoxicloro","P17","Contaminantes Orgánicos",null,"Metoxicloro","P17",null,null,null,null,null,null,null,null,null,null,null,null,null,null,null,"C13002026","Boca caño Juan Angola"]
["Mevinphos","P56","Contaminantes Orgánicos",null,"Mevinphos","P56",null,null,null,null,null,null,null,null,null,null,null,null,null,null,null,"C44003004","Boca de Rancheria"]
["Naftaleno","Naft","Contaminantes Orgánicos",null,"Naftaleno","Naft",null,null,null,null,null,null,null,null,null,null,null,null,null,null,null,"C47005025","Boca de la Barra"]
["op-DDD","P37","Contaminantes Orgánicos",null,"op-DDD","P37",null,null,null,null,null,null,null,null,null,null,null,null,null,null,null,"C47005032","Boca del Caño Grande"]
["op-DDE","P38","Contaminantes Orgánicos",null,"op-DDE","P38",null,null,null,null,null,null,null,null,null,null,null,null,null,null,null,"C47003010","Boca del Rio Cordoba"]
["op-DDT","P39","Contaminantes Orgánicos",null,"op-DDT","P39",null,null,null,null,null,null,null,null,null,null,null,null,null,null,null,"C47003002","Boca del Rio Gaira"]
["Parathion","P65","Contaminantes Orgánicos",null,"Parathion","P65",null,null,null,null,null,null,null,null,null,null,null,null,null,null,null,"C47003004","Boca del Rio Manzanares"]
["Phorate","P59","Contaminantes Orgánicos",null,"Phorate","P59",null,null,null,null,null,null,null,null,null,null,null,null,null,null,null,"C47003011","Boca del Rio Toribio"]
["Pireno","Pire","Contaminantes Orgánicos",null,"Pireno","Pire",null,null,null,null,null,null,null,null,null,null,null,null,null,null,null,"C05003012","Boca del rio Atrato, Matuntugo-DGI018"]
["Policloruros de bifenilo","PCB","Contaminantes Orgánicos",null,"Policloruros de bifenilo","PCB",null,null,null,null,null,null,null,null,null,null,null,null,null,null,null,"C27001002","Boca rio Acandí"]
["pp-DDD","P41","Contaminantes Orgánicos",null,"pp-DDD","P41",null,null,null,null,null,null,null,null,null,null,null,null,null,null,null,"C47005078","Boca. R. Aracataca"]
["pp-DDE","P42","Contaminantes Orgánicos",null,"pp-DDE","P42",null,null,null,null,null,null,null,null,null,null,null,null,null,null,null,"C47005077","Boca. R. Fundación"]
["pp-DDT","P43","Contaminantes Orgánicos",null,"pp-DDT","P43",null,null,null,null,null,null,null,null,null,null,null,null,null,null,null,"C47005079","Boca. R. Sevilla"]
["Profos","P73R","Contaminantes Orgánicos",null,"Profos","P73R",null,null,null,null,null,null,null,null,null,null,null,null,null,null,null,"P52002040","Bocana Ens. Tumaco"]
["Propiconazol","P55R","Contaminantes Orgánicos",null,"Propiconazol","P55R",null,null,null,null,null,null,null,null,null,null,null,null,null,null,null,"P19001019","Bocana Rio Saija"]
["Propoxur","P63R","Contaminantes Orgánicos",null,"Propoxur","P63R",null,null,null,null,null,null,null,null,null,null,null,null,null,null,null,"P19002013","Bocana Río Timbiqui"]
["Ronnel","P61","Contaminantes Orgánicos",null,"Ronnel","P61",null,null,null,null,null,null,null,null,null,null,null,null,null,null,null,"C08001003","Bocas de Ceniza (B)"]
["Sulfotep","P58","Contaminantes Orgánicos",null,"Sulfotep","P58",null,null,null,null,null,null,null,null,null,null,null,null,null,null,null,"C05003003","Bocas de Leoncito-DG004"]
["Tebuconazole","P86","Contaminantes Orgánicos",null,"Tebuconazole","P86",null,null,null,null,null,null,null,null,null,null,null,null,null,null,null,"C05001011","Bocas del San Juan - Arboletes - DGI028"]
["Tokuthion","P68","Contaminantes Orgánicos",null,"Tokuthion","P68",null,null,null,null,null,null,null,null,null,null,null,null,null,null,null,"C47003046","Boya 2 - Bahía de Santa Marta"]
["Trans-nanocloro","P20","Contaminantes Orgánicos",null,"Trans-nanocloro","P20",null,null,null,null,null,null,null,null,null,null,null,null,null,null,null,"C47003113","Boya 4 - Bahía de Santa Marta"]
["Trans-Permetrina","P52","Contaminantes Orgánicos",null,"Trans-Permetrina","P52",null,null,null,null,null,null,null,null,null,null,null,null,null,null,null,"C13003049","Boya Roja N° 1  Bocachica - 25"]
["Triadimenol","P56R","Contaminantes Orgánicos",null,"Triadimenol","P56R",null,null,null,null,null,null,null,null,null,null,null,null,null,null,null,"C70002009","Boya de Ecopetrol TLU1"]
["Trichloronate+A155A154A122:A168","P66","Contaminantes Orgánicos",null,"Trichloronate","P66",null,null,null,null,null,null,null,null,null,null,null,null,null,null,null,"C70002021","Boya de Ecopetrol TLU2"]
["Amonio","NH4","Fisicoquímicos",null,null,null,null,null,null,null,null,null,null,null,null,null,null,null,null,null,null,"C13003036","Boya roja - Escollera Submarina - 16"]
["Carbono Organico Total","COT","Fisicoquímicos",null,null,null,null,null,null,null,null,null,null,null,null,null,null,null,null,null,null,"C13003034","Boya roja Frente a CORELCA"]
["Clorofila a","CLA","Fisicoquímicos",null,null,null,null,null,null,null,null,null,null,null,null,null,null,null,null,null,null,"C13003039","Boya roja Nº 50. Frente al Muelle Oceanografico - Base Naval"]
["Demanda bioquímica de oxígeno","DBO","Fisicoquímicos",null,null,null,null,null,null,null,null,null,null,null,null,null,null,null,null,null,null,"C13003033","Boya roja Nº 6- Astillero Naval Cotecmar"]
["Grasas y aceites","GA","Fisicoquímicos",null,null,null,null,null,null,null,null,null,null,null,null,null,null,null,null,null,null,"C13003035","Boya verde No. 29 - Entrada al Polvorín"]
["Materia Orgánica","MO","Fisicoquímicos",null,null,null,null,null,null,null,null,null,null,null,null,null,null,null,null,null,null,"C13003032","Boya verde Nº 17 - Frente a Caño Loro"]
["Nitrato","NO3","Fisicoquímicos",null,null,null,null,null,null,null,null,null,null,null,null,null,null,null,null,null,null,"C13003038","Boya verde Nº 41 - 20"]
["Nitratos","N-NO3","Fisicoquímicos",null,null,null,null,null,null,null,null,null,null,null,null,null,null,null,null,null,null,"C23001053","Brazo Caño Grande - C. Ostional"]
["Nitrito","NO2","Fisicoquímicos",null,null,null,null,null,null,null,null,null,null,null,null,null,null,null,null,null,null,"C47005036","Buenavista"]
["Nitritos","N-NO2","Fisicoquímicos",null,null,null,null,null,null,null,null,null,null,null,null,null,null,null,null,null,null,"C47005096","Buenavista (centro pueblo)"]
["Nitritos+Nitratos","NO2+NO3","Fisicoquímicos",null,null,null,null,null,null,null,null,null,null,null,null,null,null,null,null,null,null,"C88001004","Cabañas Altamar"]
["Nitrógeno amoniacal","N-NH3","Fisicoquímicos",null,null,null,null,null,null,null,null,null,null,null,null,null,null,null,null,null,null,"C88003018","Cabeza Morgan"]
["Nut. Amonio","N-NH4","Fisicoquímicos",null,null,null,null,null,null,null,null,null,null,null,null,null,null,null,null,null,null,"C44002019","Cabo de la Vela"]
["Nut. Ortofosfatos","P-PO4","Fisicoquímicos",null,null,null,null,null,null,null,null,null,null,null,null,null,null,null,null,null,null,"P52001029","Canal Salahonda Antes Desembocadura"]
["Ortofosfato","PO4","Fisicoquímicos",null,null,null,null,null,null,null,null,null,null,null,null,null,null,null,null,null,null,"C47003003","Canal de la Escollera"]
["Silicatos","SIL","Fisicoquímicos",null,null,null,null,null,null,null,null,null,null,null,null,null,null,null,null,null,null,"C13003030","Canal del Dique - 1"]
["Silicio","SI","Fisicoquímicos",null,null,null,null,null,null,null,null,null,null,null,null,null,null,null,null,null,null,"C47004007","Carros"]
["Solidos disueltos totales","SDT","Fisicoquímicos",null,null,null,null,null,null,null,null,null,null,null,null,null,null,null,null,null,null,"C88001012","Casablanca"]
["Sólidos suspendidos fijos","SSF","Fisicoquímicos",null,null,null,null,null,null,null,null,null,null,null,null,null,null,null,null,null,null,"P76001024","Cascada La Sierpe"]
["Sólidos Suspendidos Totales","SST","Fisicoquímicos",null,null,null,null,null,null,null,null,null,null,null,null,null,null,null,null,null,null,"C88003008","Cayo Cangrejo"]
["Sólidos suspendidos volátiles","SSV","Fisicoquímicos",null,null,null,null,null,null,null,null,null,null,null,null,null,null,null,null,null,null,"C13003077","Caño 1. Mamonal"]
["Sólidos totales","STo","Fisicoquímicos",null,null,null,null,null,null,null,null,null,null,null,null,null,null,null,null,null,null,"C70002002","Caño Alegría"]
["Sulfatos","Sulf","Fisicoquímicos",null,null,null,null,null,null,null,null,null,null,null,null,null,null,null,null,null,null,"C47005022","Caño Clarín Km 15"]
["Sulfatos","SO4","Fisicoquímicos",null,null,null,null,null,null,null,null,null,null,null,null,null,null,null,null,null,null,"C70002017","Caño Francés"]
["Conductividad","CON","In Situ",null,null,null,null,null,null,null,null,null,null,null,null,null,null,null,null,null,null,"C70002020","Caño Guacamayo"]
["Oxigeno Disuelto","OD","In Situ",null,null,null,null,null,null,null,null,null,null,null,null,null,null,null,null,null,null,"C70002018","Caño Guainí"]
["pH","PH","In Situ",null,null,null,null,null,null,null,null,null,null,null,null,null,null,null,null,null,null,"C47005076","Caño Hondo"]
["Porcentaje de Saturación de Oxígeno","%SO","In Situ",null,null,null,null,null,null,null,null,null,null,null,null,null,null,null,null,null,null,"C13002027","Caño Juan Angola"]
["Potencial Redox","Rdx","In Situ",null,null,null,null,null,null,null,null,null,null,null,null,null,null,null,null,null,null,"C13004021","Caño Lequerica 1 km aguas arriba -4"]
["Salinidad","SAL","In Situ",null,null,null,null,null,null,null,null,null,null,null,null,null,null,null,null,null,null,"C70002005","Caño Pechelin (Arroyo)"]
["Temperatura","TEM","In Situ",null,null,null,null,null,null,null,null,null,null,null,null,null,null,null,null,null,null,"C70002033","Caño Zaragocilla (arriba)"]
["Transparencia","TRA","In Situ",null,null,null,null,null,null,null,null,null,null,null,null,null,null,null,null,null,null,"C47005058","Caño el Torno"]
["Turbiedad","TUR","In Situ",null,null,null,null,null,null,null,null,null,null,null,null,null,null,null,null,null,null,"C23001002","Centro Bahía Cispata"]
["Aluminio (Al)","AL","Metales Pesados",null,null,null,null,null,null,null,null,null,null,null,null,null,null,null,null,null,null,"C13003071","Centro Bahía Interna"]
["Arsénico","AS","Metales Pesados",null,null,null,null,null,null,null,null,null,null,null,null,null,null,null,null,null,null,"C47005033","Centro Cienága Grande de Santa Marta"]
["Cadmio","CD","Metales Pesados",null,null,null,null,null,null,null,null,null,null,null,null,null,null,null,null,null,null,"C70002019","Centro Golfo de Morrosquillo"]
["Cobre","CU","Metales Pesados",null,null,null,null,null,null,null,null,null,null,null,null,null,null,null,null,null,null,"C47003097","Cerca Muelle Cabotaje 2"]
["Cromo","CR","Metales Pesados",null,null,null,null,null,null,null,null,null,null,null,null,null,null,null,null,null,null,"C47002023","Chengue (Macroalgas)"]
["Cromo Hexavalente","Cr6+","Metales Pesados",null,null,null,null,null,null,null,null,null,null,null,null,null,null,null,null,null,null,"C13003078","Cienaga Honda"]
["Hierro","FE","Metales Pesados",null,null,null,null,null,null,null,null,null,null,null,null,null,null,null,null,null,null,"C47005049","Cienaga Las Piedras (VIPIS)"]
["Magnesio","MG","Metales Pesados",null,null,null,null,null,null,null,null,null,null,null,null,null,null,null,null,null,null,"C23001050","Cienaga la Loma"]
["Manganeso","MN","Metales Pesados",null,null,null,null,null,null,null,null,null,null,null,null,null,null,null,null,null,null,"C47005045","Ciénaga  Poza Verde"]
["Mercurio","HG","Metales Pesados",null,null,null,null,null,null,null,null,null,null,null,null,null,null,null,null,null,null,"C13002013","Ciénaga - Norte de la pantalla de Boca"]
["Niquel","NI","Metales Pesados",null,null,null,null,null,null,null,null,null,null,null,null,null,null,null,null,null,null,"C13002014","Ciénaga - Sur de la pantalla de Bocana"]
["Plomo","PB","Metales Pesados",null,null,null,null,null,null,null,null,null,null,null,null,null,null,null,null,null,null,"C47005085","Ciénaga Alfandoque"]
["Zinc","ZN","Metales Pesados",null,null,null,null,null,null,null,null,null,null,null,null,null,null,null,null,null,null,"C08002023","Ciénaga Balboa 2"]
["Clostridium sp.","CLO","Microbiológicos",null,null,null,null,null,null,null,null,null,null,null,null,null,null,null,null,null,null,"C47005075","Ciénaga Chesle"]
["Coliformes termotolerantes","CTE","Microbiológicos",null,null,null,null,null,null,null,null,null,null,null,null,null,null,null,null,null,null,"C47005084","Ciénaga Conchal"]
["Coliformes totales","CTT","Microbiológicos",null,null,null,null,null,null,null,null,null,null,null,null,null,null,null,null,null,null,"C13003093","Ciénaga Coquito"]
["Enterococcus fecales","EFE","Microbiológicos",null,null,null,null,null,null,null,null,null,null,null,null,null,null,null,null,null,null,"C47005044","Ciénaga El Loro"]
["Escherichia coli","ECO","Microbiológicos",null,null,null,null,null,null,null,null,null,null,null,null,null,null,null,null,null,null,"C47005043","Ciénaga El Torno"]
["Pseudomona sp.","PSE","Microbiológicos",null,null,null,null,null,null,null,null,null,null,null,null,null,null,null,null,null,null,"C13001013","Ciénaga El Totumo"]
[null,null,null,null,null,null,null,null,null,null,null,null,null,null,null,null,null,null,null,null,null,"C13002024","Ciénaga Juan Polo"]
[null,null,null,null,null,null,null,null,null,null,null,null,null,null,null,null,null,null,null,null,null,"C47005054","Ciénaga La Ahuyama"]
["ATRIBUTOS ADICIONALES",null,null,null,null,null,null,null,null,null,null,null,null,null,null,null,null,null,null,null,null,"C70002041","Ciénaga La Caimanera"]
[null,null,null,null,null,null,null,null,null,null,null,null,null,null,null,null,null,null,null,null,null,"C70002050","Ciénaga La Caimanera 2"]
[null,null,null,null,null,null,null,null,null,null,null,null,null,null,null,null,null,null,null,null,null,"C47005039","Ciénaga La Redonda"]
[null,null,null,null,null,null,null,null,null,null,null,null,null,null,null,null,null,null,null,null,null,"C23001048","Ciénaga La Soledad"]
[null,null,null,null,null,null,null,null,null,null,null,null,null,null,null,null,null,null,null,null,null,"C13003069","Ciénaga Las Quintas - Manglar"]
[null,null,null,null,null,null,null,null,null,null,null,null,null,null,null,null,null,null,null,null,null,"C47005082","Ciénaga Pajarales"]
[null,null,null,null,null,null,null,null,null,null,null,null,null,null,null,null,null,null,null,null,null,"C47005098","Ciénaga Pajarales (entre dos pueblos palafíticos)"]
[null,null,null,null,null,null,null,null,null,null,null,null,null,null,null,null,null,null,null,null,null,"C47005086","Ciénaga Pajarales - Frente a Venecia"]
[null,null,null,null,null,null,null,null,null,null,null,null,null,null,null,null,null,null,null,null,null,"C47005087","Ciénaga Pajarales - Sector Machete"]
[null,null,null,null,null,null,null,null,null,null,null,null,null,null,null,null,null,null,null,null,null,"C47005080","Ciénaga Tronconera"]
[null,null,null,null,null,null,null,null,null,null,null,null,null,null,null,null,null,null,null,null,null,"C47005091","Ciénaga del Sevillano (Descarga Laguna Oxidación)"]
[null,null,null,null,null,null,null,null,null,null,null,null,null,null,null,null,null,null,null,null,null,"C47005094","Ciénaga del Sevillano - 3"]
[null,null,null,null,null,null,null,null,null,null,null,null,null,null,null,null,null,null,null,null,null,"C47005095","Ciénaga del Sevillano - 4"]
[null,null,null,null,null,null,null,null,null,null,null,null,null,null,null,null,null,null,null,null,null,"C47005092","Ciénaga del Sevillano-2 (Centro)"]
[null,null,null,null,null,null,null,null,null,null,null,null,null,null,null,null,null,null,null,null,null,"C47005038","Ciénaga la Luna"]
[null,null,null,null,null,null,null,null,null,null,null,null,null,null,null,null,null,null,null,null,null,"C47005083","Ciénaga las Piedras"]
[null,null,null,null,null,null,null,null,null,null,null,null,null,null,null,null,null,null,null,null,null,"C13003096","Ciénaga las Quintas P01"]
[null,null,null,null,null,null,null,null,null,null,null,null,null,null,null,null,null,null,null,null,null,"C13003070","CiénagaLas Quintas -Centro"]
[null,null,null,null,null,null,null,null,null,null,null,null,null,null,null,null,null,null,null,null,null,"C47003112","Colector Pluvial Bastidas"]
[null,null,null,null,null,null,null,null,null,null,null,null,null,null,null,null,null,null,null,null,null,"P76002101","Comercializadora PESCAM"]
[null,null,null,null,null,null,null,null,null,null,null,null,null,null,null,null,null,null,null,null,null,"C13003074","Contecar"]
[null,null,null,null,null,null,null,null,null,null,null,null,null,null,null,null,null,null,null,null,null,"C70002040","Coveñas Coquerita"]
[null,null,null,null,null,null,null,null,null,null,null,null,null,null,null,null,null,null,null,null,null,"C70002038","Coveñas Puerto Viejo"]
[null,null,null,null,null,null,null,null,null,null,null,null,null,null,null,null,null,null,null,null,null,"C70002039","Coveñas Puntepiedras"]
[null,null,null,null,null,null,null,null,null,null,null,null,null,null,null,null,null,null,null,null,null,"C88003017","Descarga PTAR"]
[null,null,null,null,null,null,null,null,null,null,null,null,null,null,null,null,null,null,null,null,null,"C08003051","Desem. Arroyo León- C. Mallorquín"]
[null,null,null,null,null,null,null,null,null,null,null,null,null,null,null,null,null,null,null,null,null,"C13004023","Desembocadura Arroyo Plata - 6"]
[null,null,null,null,null,null,null,null,null,null,null,null,null,null,null,null,null,null,null,null,null,"C47003059","Desembocadura Canal Metroagua"]
[null,null,null,null,null,null,null,null,null,null,null,null,null,null,null,null,null,null,null,null,null,"C13004024","Desembocadura Caño Correa - 7"]
[null,null,null,null,null,null,null,null,null,null,null,null,null,null,null,null,null,null,null,null,null,"C13004020","Desembocadura Caño Lequerica - 3"]
[null,null,null,null,null,null,null,null,null,null,null,null,null,null,null,null,null,null,null,null,null,"C13004022","Desembocadura Caño Matunilla - 5"]
[null,null,null,null,null,null,null,null,null,null,null,null,null,null,null,null,null,null,null,null,null,"P19001018","Desembocadura Rio Saija"]
[null,null,null,null,null,null,null,null,null,null,null,null,null,null,null,null,null,null,null,null,null,"C05002010","Desembocadura Río Bobal-Necoclí-DGI036"]
[null,null,null,null,null,null,null,null,null,null,null,null,null,null,null,null,null,null,null,null,null,"C05002012","Desembocadura Río Caiman Nuevo Nec - DGI038"]
[null,null,null,null,null,null,null,null,null,null,null,null,null,null,null,null,null,null,null,null,null,"C05002011","Desembocadura Río Caiman viejo Necoclí-DGI037"]
[null,null,null,null,null,null,null,null,null,null,null,null,null,null,null,null,null,null,null,null,null,"C05001016","Desembocadura Río Damaquiel - DGI034"]
[null,null,null,null,null,null,null,null,null,null,null,null,null,null,null,null,null,null,null,null,null,"C05003022","Desembocadura Río Guadualito - Turbo - DGI039"]
[null,null,null,null,null,null,null,null,null,null,null,null,null,null,null,null,null,null,null,null,null,"C05001014","Desembocadura Río Hobo Arboletes - DGI032"]
[null,null,null,null,null,null,null,null,null,null,null,null,null,null,null,null,null,null,null,null,null,"P19001010","Desembocadura Río Timbiqui"]
[null,null,null,null,null,null,null,null,null,null,null,null,null,null,null,null,null,null,null,null,null,"C05002013","Desembocadura Río Turbo - DGI040"]
[null,null,null,null,null,null,null,null,null,null,null,null,null,null,null,null,null,null,null,null,null,"C05001013","Desembocadura Río Volcan Arboletes - DGI031"]
[null,null,null,null,null,null,null,null,null,null,null,null,null,null,null,null,null,null,null,null,null,"C05001007","Desembocadura de Rio Necoclí - DGI005"]
[null,null,null,null,null,null,null,null,null,null,null,null,null,null,null,null,null,null,null,null,null,"C13003031","Desembocadura del Canal del Dique- 2"]
[null,null,null,null,null,null,null,null,null,null,null,null,null,null,null,null,null,null,null,null,null,"C05003001","Desembocadura del Rio León - DGI013"]
[null,null,null,null,null,null,null,null,null,null,null,null,null,null,null,null,null,null,null,null,null,"C05001006","Desembocadura del Río Mulatos-DGI002"]
[null,null,null,null,null,null,null,null,null,null,null,null,null,null,null,null,null,null,null,null,null,"C05003011","Desembocadura rio Currulao - DGI011"]
[null,null,null,null,null,null,null,null,null,null,null,null,null,null,null,null,null,null,null,null,null,"C05003005","Desembocadura rio Leoncito-DGI016"]
[null,null,null,null,null,null,null,null,null,null,null,null,null,null,null,null,null,null,null,null,null,"C05003052","Desembocadura río Atrato"]
[null,null,null,null,null,null,null,null,null,null,null,null,null,null,null,null,null,null,null,null,null,"P76001008","Diagonal  Hotel  Palm  View"]
[null,null,null,null,null,null,null,null,null,null,null,null,null,null,null,null,null,null,null,null,null,"C13003088","E10"]
[null,null,null,null,null,null,null,null,null,null,null,null,null,null,null,null,null,null,null,null,null,"C13003081","E2"]
[null,null,null,null,null,null,null,null,null,null,null,null,null,null,null,null,null,null,null,null,null,"C13003082","E3"]
[null,null,null,null,null,null,null,null,null,null,null,null,null,null,null,null,null,null,null,null,null,"C13003083","E4"]
[null,null,null,null,null,null,null,null,null,null,null,null,null,null,null,null,null,null,null,null,null,"C13003084","E5"]
[null,null,null,null,null,null,null,null,null,null,null,null,null,null,null,null,null,null,null,null,null,"C13003085","E6"]
[null,null,null,null,null,null,null,null,null,null,null,null,null,null,null,null,null,null,null,null,null,"C13003086","E7"]
[null,null,null,null,null,null,null,null,null,null,null,null,null,null,null,null,null,null,null,null,null,"C13003087","E9"]
[null,null,null,null,null,null,null,null,null,null,null,null,null,null,null,null,null,null,null,null,null,"C88003009","Electrificadora"]
[null,null,null,null,null,null,null,null,null,null,null,null,null,null,null,null,null,null,null,null,null,"C47003105","Emisario 1"]
[null,null,null,null,null,null,null,null,null,null,null,null,null,null,null,null,null,null,null,null,null,"C47003110","Emisario 6 (Boqueron)"]
[null,null,null,null,null,null,null,null,null,null,null,null,null,null,null,null,null,null,null,null,null,"C47003106","Emisario 7"]
[null,null,null,null,null,null,null,null,null,null,null,null,null,null,null,null,null,null,null,null,null,"C47003037","Emisario 8"]
[null,null,null,null,null,null,null,null,null,null,null,null,null,null,null,null,null,null,null,null,null,"C47003104","Emisario 9"]
[null,null,null,null,null,null,null,null,null,null,null,null,null,null,null,null,null,null,null,null,null,"C47003108","Emisario B1"]
[null,null,null,null,null,null,null,null,null,null,null,null,null,null,null,null,null,null,null,null,null,"C47003107","Emisario Boqueron"]
[null,null,null,null,null,null,null,null,null,null,null,null,null,null,null,null,null,null,null,null,null,"C47003103","Emisario T1"]
[null,null,null,null,null,null,null,null,null,null,null,null,null,null,null,null,null,null,null,null,null,"C05001002","Ensenada de Rio Negro - DGI004"]
[null,null,null,null,null,null,null,null,null,null,null,null,null,null,null,null,null,null,null,null,null,"P27002016","Ensenada de Utría"]
[null,null,null,null,null,null,null,null,null,null,null,null,null,null,null,null,null,null,null,null,null,"C47005088","Entrada Ciénaga Alfandoque"]
[null,null,null,null,null,null,null,null,null,null,null,null,null,null,null,null,null,null,null,null,null,"C47005089","Entrada Ciénaga Conchal"]
[null,null,null,null,null,null,null,null,null,null,null,null,null,null,null,null,null,null,null,null,null,"C47005090","Entrada Ciénaga Las Piedras"]
[null,null,null,null,null,null,null,null,null,null,null,null,null,null,null,null,null,null,null,null,null,"C88003005","Escuela Bomboná"]
[null,null,null,null,null,null,null,null,null,null,null,null,null,null,null,null,null,null,null,null,null,"P52002038","Estación Emisario"]
[null,null,null,null,null,null,null,null,null,null,null,null,null,null,null,null,null,null,null,null,null,"P52002027","Estación Mobil Litoral"]
[null,null,null,null,null,null,null,null,null,null,null,null,null,null,null,null,null,null,null,null,null,"P52002028","Estación servicio Bavaria"]
[null,null,null,null,null,null,null,null,null,null,null,null,null,null,null,null,null,null,null,null,null,"P76002104","Estero 1 - La Y"]
[null,null,null,null,null,null,null,null,null,null,null,null,null,null,null,null,null,null,null,null,null,"P76002103","Estero 2 - Agua dulce"]
[null,null,null,null,null,null,null,null,null,null,null,null,null,null,null,null,null,null,null,null,null,"P76002098","Estero 3 - Fabian"]
[null,null,null,null,null,null,null,null,null,null,null,null,null,null,null,null,null,null,null,null,null,"P76002097","Estero 4 - Puente el Piñal"]
[null,null,null,null,null,null,null,null,null,null,null,null,null,null,null,null,null,null,null,null,null,"P76002096","Estero San Antonio"]
[null,null,null,null,null,null,null,null,null,null,null,null,null,null,null,null,null,null,null,null,null,"P27002013","Estero Tribugá"]
[null,null,null,null,null,null,null,null,null,null,null,null,null,null,null,null,null,null,null,null,null,"P52002015","Estero el Pajal"]
[null,null,null,null,null,null,null,null,null,null,null,null,null,null,null,null,null,null,null,null,null,"C05003021","F. Leoncito - B. Colombia-Fondeadero - DGI030"]
[null,null,null,null,null,null,null,null,null,null,null,null,null,null,null,null,null,null,null,null,null,"P76002070","Frente  al muelle - Bocana"]
[null,null,null,null,null,null,null,null,null,null,null,null,null,null,null,null,null,null,null,null,null,"P76002071","Frente  hotel  Bocana"]
[null,null,null,null,null,null,null,null,null,null,null,null,null,null,null,null,null,null,null,null,null,"P27002011","Frente Bahía Solano"]
[null,null,null,null,null,null,null,null,null,null,null,null,null,null,null,null,null,null,null,null,null,"P19001016","Frente Bocana Rio Saija"]
[null,null,null,null,null,null,null,null,null,null,null,null,null,null,null,null,null,null,null,null,null,"P19002015","Frente Bocana Río Timbiqui"]
[null,null,null,null,null,null,null,null,null,null,null,null,null,null,null,null,null,null,null,null,null,"C13003076","Frente Caño Loro (Tierra Bomba)"]
[null,null,null,null,null,null,null,null,null,null,null,null,null,null,null,null,null,null,null,null,null,"C70002047","Frente Golfo Centro"]
[null,null,null,null,null,null,null,null,null,null,null,null,null,null,null,null,null,null,null,null,null,"P19001015","Frente Norte Bocana Rio Saija"]
[null,null,null,null,null,null,null,null,null,null,null,null,null,null,null,null,null,null,null,null,null,"P19002014","Frente Norte Río Timbiqui"]
[null,null,null,null,null,null,null,null,null,null,null,null,null,null,null,null,null,null,null,null,null,"C88002005","Frente Sharky´s (cont"]
[null,null,null,null,null,null,null,null,null,null,null,null,null,null,null,null,null,null,null,null,null,"P52002018","Frente Sociedad Portuaria"]
[null,null,null,null,null,null,null,null,null,null,null,null,null,null,null,null,null,null,null,null,null,"P19001020","Frente Sur Bocana Rio Saija"]
[null,null,null,null,null,null,null,null,null,null,null,null,null,null,null,null,null,null,null,null,null,"P19002016","Frente Sur Río Timbiqui"]
[null,null,null,null,null,null,null,null,null,null,null,null,null,null,null,null,null,null,null,null,null,"C23001049","Frente a Agrotijo"]
[null,null,null,null,null,null,null,null,null,null,null,null,null,null,null,null,null,null,null,null,null,"P19002006","Frente a B.R. Guajui"]
[null,null,null,null,null,null,null,null,null,null,null,null,null,null,null,null,null,null,null,null,null,"P19002007","Frente a B.R. Guapi (Boya)"]
[null,null,null,null,null,null,null,null,null,null,null,null,null,null,null,null,null,null,null,null,null,"P52001016","Frente a B.R. Iscuandé"]
[null,null,null,null,null,null,null,null,null,null,null,null,null,null,null,null,null,null,null,null,null,"C08003044","Frente a Base Naval"]
[null,null,null,null,null,null,null,null,null,null,null,null,null,null,null,null,null,null,null,null,null,"C44003019","Frente a Camarones"]
[null,null,null,null,null,null,null,null,null,null,null,null,null,null,null,null,null,null,null,null,null,"C44003005","Frente a Cañas"]
[null,null,null,null,null,null,null,null,null,null,null,null,null,null,null,null,null,null,null,null,null,"C70002029","Frente a Caño  Francés"]
[null,null,null,null,null,null,null,null,null,null,null,null,null,null,null,null,null,null,null,null,null,"C70002022","Frente a Caño Alegría"]
[null,null,null,null,null,null,null,null,null,null,null,null,null,null,null,null,null,null,null,null,null,"C23001003","Frente a Cispata"]
[null,null,null,null,null,null,null,null,null,null,null,null,null,null,null,null,null,null,null,null,null,"C47003027","Frente a Costa Verde"]
[null,null,null,null,null,null,null,null,null,null,null,null,null,null,null,null,null,null,null,null,null,"C70002026","Frente a Coveñas"]
[null,null,null,null,null,null,null,null,null,null,null,null,null,null,null,null,null,null,null,null,null,"C08003045","Frente a Dársena acueducto barranquilla"]
[null,null,null,null,null,null,null,null,null,null,null,null,null,null,null,null,null,null,null,null,null,"C13001009","Frente a Isla Arena - 2 (playa Frente Condominio Isla Arena)"]
[null,null,null,null,null,null,null,null,null,null,null,null,null,null,null,null,null,null,null,null,null,"C44003006","Frente a Jerez"]
[null,null,null,null,null,null,null,null,null,null,null,null,null,null,null,null,null,null,null,null,null,"C44003007","Frente a Palomino"]
[null,null,null,null,null,null,null,null,null,null,null,null,null,null,null,null,null,null,null,null,null,"P27002007","Frente a R. Nuquí"]
[null,null,null,null,null,null,null,null,null,null,null,null,null,null,null,null,null,null,null,null,null,"P27002005","Frente a R. Valle"]
[null,null,null,null,null,null,null,null,null,null,null,null,null,null,null,null,null,null,null,null,null,"C44003008","Frente a Rancheria"]
[null,null,null,null,null,null,null,null,null,null,null,null,null,null,null,null,null,null,null,null,null,"C47001004","Frente a Rio Buritaca"]
[null,null,null,null,null,null,null,null,null,null,null,null,null,null,null,null,null,null,null,null,null,"C47003023","Frente a Rio Cordoba"]
[null,null,null,null,null,null,null,null,null,null,null,null,null,null,null,null,null,null,null,null,null,"C47001005","Frente a Rio Don Diego"]
[null,null,null,null,null,null,null,null,null,null,null,null,null,null,null,null,null,null,null,null,null,"C47003014","Frente a Rio Gaira"]
[null,null,null,null,null,null,null,null,null,null,null,null,null,null,null,null,null,null,null,null,null,"C47001006","Frente a Rio Guachaca"]
[null,null,null,null,null,null,null,null,null,null,null,null,null,null,null,null,null,null,null,null,null,"C23002007","Frente a Rio Mangle"]
[null,null,null,null,null,null,null,null,null,null,null,null,null,null,null,null,null,null,null,null,null,"C47003018","Frente a Rio Manzanares"]
[null,null,null,null,null,null,null,null,null,null,null,null,null,null,null,null,null,null,null,null,null,"P19001003","Frente a Rio Micay"]
[null,null,null,null,null,null,null,null,null,null,null,null,null,null,null,null,null,null,null,null,null,"C47002003","Frente a Rio Piedras"]
[null,null,null,null,null,null,null,null,null,null,null,null,null,null,null,null,null,null,null,null,null,"P19001004","Frente a Rio Saija"]
[null,null,null,null,null,null,null,null,null,null,null,null,null,null,null,null,null,null,null,null,null,"C47003024","Frente a Rio Toribio"]
[null,null,null,null,null,null,null,null,null,null,null,null,null,null,null,null,null,null,null,null,null,"P52002030","Frente a Rios"]
[null,null,null,null,null,null,null,null,null,null,null,null,null,null,null,null,null,null,null,null,null,"P76002073","Frente a Río Anchicayá"]
[null,null,null,null,null,null,null,null,null,null,null,null,null,null,null,null,null,null,null,null,null,"C47005026","Frente a Río Aracataca - ESTOCA104"]
[null,null,null,null,null,null,null,null,null,null,null,null,null,null,null,null,null,null,null,null,null,"P76003026","Frente a Río Cajambre"]
[null,null,null,null,null,null,null,null,null,null,null,null,null,null,null,null,null,null,null,null,null,"P76002074","Frente a Río Dagua"]
[null,null,null,null,null,null,null,null,null,null,null,null,null,null,null,null,null,null,null,null,null,"C47005027","Frente a Río Fundación"]
[null,null,null,null,null,null,null,null,null,null,null,null,null,null,null,null,null,null,null,null,null,"P76003031","Frente a Río Mayorquín"]
[null,null,null,null,null,null,null,null,null,null,null,null,null,null,null,null,null,null,null,null,null,"P76003034","Frente a Río Naya"]
[null,null,null,null,null,null,null,null,null,null,null,null,null,null,null,null,null,null,null,null,null,"P76002075","Frente a Río Potedo"]
[null,null,null,null,null,null,null,null,null,null,null,null,null,null,null,null,null,null,null,null,null,"P76003038","Frente a Río Raposo"]
[null,null,null,null,null,null,null,null,null,null,null,null,null,null,null,null,null,null,null,null,null,"P76001009","Frente a Río San Juan"]
[null,null,null,null,null,null,null,null,null,null,null,null,null,null,null,null,null,null,null,null,null,"C47005028","Frente a Río Sevilla - ESTOCA70"]
[null,null,null,null,null,null,null,null,null,null,null,null,null,null,null,null,null,null,null,null,null,"C23001005","Frente a Río Sinú - Tinajones"]
[null,null,null,null,null,null,null,null,null,null,null,null,null,null,null,null,null,null,null,null,null,"P76003037","Frente a Río Yurumanguí"]
[null,null,null,null,null,null,null,null,null,null,null,null,null,null,null,null,null,null,null,null,null,"P19002008","Frente a Timbiqui"]
[null,null,null,null,null,null,null,null,null,null,null,null,null,null,null,null,null,null,null,null,null,"C70002030","Frente a Tolú"]
[null,null,null,null,null,null,null,null,null,null,null,null,null,null,null,null,null,null,null,null,null,"P76001003","Frente a cabaña  Amarilla"]
[null,null,null,null,null,null,null,null,null,null,null,null,null,null,null,null,null,null,null,null,null,"P76001004","Frente a cabañas  Carvajal"]
[null,null,null,null,null,null,null,null,null,null,null,null,null,null,null,null,null,null,null,null,null,"C47004003","Frente a la Barra"]
[null,null,null,null,null,null,null,null,null,null,null,null,null,null,null,null,null,null,null,null,null,"C44003034","Frente a río Ancho"]
[null,null,null,null,null,null,null,null,null,null,null,null,null,null,null,null,null,null,null,null,null,"P76001006","Frente al  muelle - Juanchaco"]
[null,null,null,null,null,null,null,null,null,null,null,null,null,null,null,null,null,null,null,null,null,"C13001008","Frente al Faro de Galerazamba - 1"]
[null,null,null,null,null,null,null,null,null,null,null,null,null,null,null,null,null,null,null,null,null,"P76001005","Frente al Hotel Medellín"]
[null,null,null,null,null,null,null,null,null,null,null,null,null,null,null,null,null,null,null,null,null,"C13003037","Frente al emisario de Acuacar - ENAP Isla Manzanillo"]
[null,null,null,null,null,null,null,null,null,null,null,null,null,null,null,null,null,null,null,null,null,"C27001027","Frente boca río Acandí"]
[null,null,null,null,null,null,null,null,null,null,null,null,null,null,null,null,null,null,null,null,null,"P52003007","Frente río Mataje"]
[null,null,null,null,null,null,null,null,null,null,null,null,null,null,null,null,null,null,null,null,null,"P52003008","Frente río Mira"]
[null,null,null,null,null,null,null,null,null,null,null,null,null,null,null,null,null,null,null,null,null,"C70002046","Golfo 7"]
[null,null,null,null,null,null,null,null,null,null,null,null,null,null,null,null,null,null,null,null,null,"C70002042","Golfo Frente Berrugas"]
[null,null,null,null,null,null,null,null,null,null,null,null,null,null,null,null,null,null,null,null,null,"C70002044","Golfo Frente Frances"]
[null,null,null,null,null,null,null,null,null,null,null,null,null,null,null,null,null,null,null,null,null,"C70002045","Golfo Frente Pechelín"]
[null,null,null,null,null,null,null,null,null,null,null,null,null,null,null,null,null,null,null,null,null,"C70002043","Golfo Frente Zaragocilla"]
[null,null,null,null,null,null,null,null,null,null,null,null,null,null,null,null,null,null,null,null,null,"C05003009","Golfo de Uraba -F. Atrato DGI020"]
[null,null,null,null,null,null,null,null,null,null,null,null,null,null,null,null,null,null,null,null,null,"P19003004","Gorgonilla"]
[null,null,null,null,null,null,null,null,null,null,null,null,null,null,null,null,null,null,null,null,null,"C88003006","Gully Bottom House"]
[null,null,null,null,null,null,null,null,null,null,null,null,null,null,null,null,null,null,null,null,null,"P52001025","Harinera (Estero Chanzara)"]
[null,null,null,null,null,null,null,null,null,null,null,null,null,null,null,null,null,null,null,null,null,"C88001020","Haynes Cay ( Acuario HC 01)"]
[null,null,null,null,null,null,null,null,null,null,null,null,null,null,null,null,null,null,null,null,null,"C88001024","Haynes Cay (Acuario 02)"]
[null,null,null,null,null,null,null,null,null,null,null,null,null,null,null,null,null,null,null,null,null,"C88001002","Hotel Isleño"]
[null,null,null,null,null,null,null,null,null,null,null,null,null,null,null,null,null,null,null,null,null,"C88002004","Influencia Basurero"]
[null,null,null,null,null,null,null,null,null,null,null,null,null,null,null,null,null,null,null,null,null,"C13004019","Isla Barú - Bahía de Barbacoas - Sector Estancia"]
[null,null,null,null,null,null,null,null,null,null,null,null,null,null,null,null,null,null,null,null,null,"C13003079","Isla Barú- Sur Bahía"]
[null,null,null,null,null,null,null,null,null,null,null,null,null,null,null,null,null,null,null,null,null,"C13004018","Isla Grande frente al Hotel del Pirata"]
[null,null,null,null,null,null,null,null,null,null,null,null,null,null,null,null,null,null,null,null,null,"C70001004","Isla Palma (I. San Berna"]
[null,null,null,null,null,null,null,null,null,null,null,null,null,null,null,null,null,null,null,null,null,"P52002042","Isla Vaqueria"]
[null,null,null,null,null,null,null,null,null,null,null,null,null,null,null,null,null,null,null,null,null,"C47005059","Islas del Rosario"]
[null,null,null,null,null,null,null,null,null,null,null,null,null,null,null,null,null,null,null,null,null,"C13004026","Islas del Rosario - Caño Ratón - 9"]
[null,null,null,null,null,null,null,null,null,null,null,null,null,null,null,null,null,null,null,null,null,"C70001001","Islote (Santa Cruz de los Pescadores)"]
[null,null,null,null,null,null,null,null,null,null,null,null,null,null,null,null,null,null,null,null,null,"C88001009","Johnny Cay"]
[null,null,null,null,null,null,null,null,null,null,null,null,null,null,null,null,null,null,null,null,null,"C88001014","Johnny Cay JC 01 (Zona Baño)"]
[null,null,null,null,null,null,null,null,null,null,null,null,null,null,null,null,null,null,null,null,null,"C88001015","Johnny Cay JC 02 (Muelle JC)"]
[null,null,null,null,null,null,null,null,null,null,null,null,null,null,null,null,null,null,null,null,null,"C44003015","Junto a TermoGuajira"]
[null,null,null,null,null,null,null,null,null,null,null,null,null,null,null,null,null,null,null,null,null,"P27002020","Jurubidá Estero"]
[null,null,null,null,null,null,null,null,null,null,null,null,null,null,null,null,null,null,null,null,null,"C05001008","Km Arriba del rio Necocli-DGI006"]
[null,null,null,null,null,null,null,null,null,null,null,null,null,null,null,null,null,null,null,null,null,"C27001004","Km Arriba del río Acandí"]
[null,null,null,null,null,null,null,null,null,null,null,null,null,null,null,null,null,null,null,null,null,"C05003019","Km Arriba del río Atrato-DGI019"]
[null,null,null,null,null,null,null,null,null,null,null,null,null,null,null,null,null,null,null,null,null,"C05001017","Km adentro Río Damaquiel-DGI035"]
[null,null,null,null,null,null,null,null,null,null,null,null,null,null,null,null,null,null,null,null,null,"C05003016","Km arriba del rio Leoncito-DGI017"]
[null,null,null,null,null,null,null,null,null,null,null,null,null,null,null,null,null,null,null,null,null,"C05001009","Km arriba del río Mulatos-DGI003"]
[null,null,null,null,null,null,null,null,null,null,null,null,null,null,null,null,null,null,null,null,null,"P76001002","La Barra"]
[null,null,null,null,null,null,null,null,null,null,null,null,null,null,null,null,null,null,null,null,null,"C47005014","La Ye en el Clarín"]
[null,null,null,null,null,null,null,null,null,null,null,null,null,null,null,null,null,null,null,null,null,"C08003041","Las Flores, abajo aguas residuales al Río Mag"]
[null,null,null,null,null,null,null,null,null,null,null,null,null,null,null,null,null,null,null,null,null,"C13003094","Mamonal M2"]
[null,null,null,null,null,null,null,null,null,null,null,null,null,null,null,null,null,null,null,null,null,"C13003095","Mamonal M5 - Caño Casimiro"]
[null,null,null,null,null,null,null,null,null,null,null,null,null,null,null,null,null,null,null,null,null,"C44002023","Manaure Mar afuera 2"]
[null,null,null,null,null,null,null,null,null,null,null,null,null,null,null,null,null,null,null,null,null,"C47003008","Marina - Bahía Santa Marta"]
[null,null,null,null,null,null,null,null,null,null,null,null,null,null,null,null,null,null,null,null,null,"C70001002","Matatigre"]
[null,null,null,null,null,null,null,null,null,null,null,null,null,null,null,null,null,null,null,null,null,"C88003007","McBean Lagoon"]
[null,null,null,null,null,null,null,null,null,null,null,null,null,null,null,null,null,null,null,null,null,"P52001027","Mosquera Antes"]
[null,null,null,null,null,null,null,null,null,null,null,null,null,null,null,null,null,null,null,null,null,"P52001028","Mosquera Despues"]
[null,null,null,null,null,null,null,null,null,null,null,null,null,null,null,null,null,null,null,null,null,"C23002002","Moñitos"]
[null,null,null,null,null,null,null,null,null,null,null,null,null,null,null,null,null,null,null,null,null,"C05003020","Muelle Armada - Turbo - DGI027"]
[null,null,null,null,null,null,null,null,null,null,null,null,null,null,null,null,null,null,null,null,null,"C44002020","Muelle Manaure. Salina"]
[null,null,null,null,null,null,null,null,null,null,null,null,null,null,null,null,null,null,null,null,null,"P76002105","Muelle Petrolero"]
[null,null,null,null,null,null,null,null,null,null,null,null,null,null,null,null,null,null,null,null,null,"C44003009","Muelle Riohacha"]
[null,null,null,null,null,null,null,null,null,null,null,null,null,null,null,null,null,null,null,null,null,"C88001008","Muelle San Andrés"]
[null,null,null,null,null,null,null,null,null,null,null,null,null,null,null,null,null,null,null,null,null,"C88003001","Muelle Santa Isabel"]
[null,null,null,null,null,null,null,null,null,null,null,null,null,null,null,null,null,null,null,null,null,"C47003006","Muelle de Cabotaje (Calle 10)"]
[null,null,null,null,null,null,null,null,null,null,null,null,null,null,null,null,null,null,null,null,null,"C47004008","Mussas"]
[null,null,null,null,null,null,null,null,null,null,null,null,null,null,null,null,null,null,null,null,null,"C13002020","Norte Cienaga"]
[null,null,null,null,null,null,null,null,null,null,null,null,null,null,null,null,null,null,null,null,null,"P19003001","Norte del Horno Gorgona"]
[null,null,null,null,null,null,null,null,null,null,null,null,null,null,null,null,null,null,null,null,null,"C47005040","Nueva Venecia"]
[null,null,null,null,null,null,null,null,null,null,null,null,null,null,null,null,null,null,null,null,null,"C47005097","Nueva Venecia (centro pueblo)"]
[null,null,null,null,null,null,null,null,null,null,null,null,null,null,null,null,null,null,null,null,null,"C13004035","Oceanario - 11"]
[null,null,null,null,null,null,null,null,null,null,null,null,null,null,null,null,null,null,null,null,null,"C13003080","Oceánica (BahíaCartagena)"]
[null,null,null,null,null,null,null,null,null,null,null,null,null,null,null,null,null,null,null,null,null,"P76002100","Palafito 1 - La Playita"]
[null,null,null,null,null,null,null,null,null,null,null,null,null,null,null,null,null,null,null,null,null,"C47003051","Parque Acuático"]
[null,null,null,null,null,null,null,null,null,null,null,null,null,null,null,null,null,null,null,null,null,"P76002072","Pianguita - Juanchaco"]
[null,null,null,null,null,null,null,null,null,null,null,null,null,null,null,null,null,null,null,null,null,"P27002017","Playa Almejal"]
[null,null,null,null,null,null,null,null,null,null,null,null,null,null,null,null,null,null,null,null,null,"C47002006","Playa Bahia Concha"]
[null,null,null,null,null,null,null,null,null,null,null,null,null,null,null,null,null,null,null,null,null,"C47003022","Playa Bahía Taganga"]
[null,null,null,null,null,null,null,null,null,null,null,null,null,null,null,null,null,null,null,null,null,"C47003019","Playa Batallón"]
[null,null,null,null,null,null,null,null,null,null,null,null,null,null,null,null,null,null,null,null,null,"C47003091","Playa Bello Horizonte"]
[null,null,null,null,null,null,null,null,null,null,null,null,null,null,null,null,null,null,null,null,null,"C70002035","Playa Berrugas"]
[null,null,null,null,null,null,null,null,null,null,null,null,null,null,null,null,null,null,null,null,null,"C47003050","Playa Blanca"]
[null,null,null,null,null,null,null,null,null,null,null,null,null,null,null,null,null,null,null,null,null,"C13004038","Playa Blanca - Isla Barú"]
[null,null,null,null,null,null,null,null,null,null,null,null,null,null,null,null,null,null,null,null,null,"C23001014","Playa Blanca San Antero"]
[null,null,null,null,null,null,null,null,null,null,null,null,null,null,null,null,null,null,null,null,null,"P19003002","Playa Blanca era la Azufrada"]
[null,null,null,null,null,null,null,null,null,null,null,null,null,null,null,null,null,null,null,null,null,"P52002039","Playa Bocagrande"]
[null,null,null,null,null,null,null,null,null,null,null,null,null,null,null,null,null,null,null,null,null,"C13003073","Playa Bocagrande-2"]
[null,null,null,null,null,null,null,null,null,null,null,null,null,null,null,null,null,null,null,null,null,"C47001010","Playa Buritaca"]
[null,null,null,null,null,null,null,null,null,null,null,null,null,null,null,null,null,null,null,null,null,"C47002019","Playa Cabo San Juan"]
[null,null,null,null,null,null,null,null,null,null,null,null,null,null,null,null,null,null,null,null,null,"C47002020","Playa Cabo San Juan (2)"]
[null,null,null,null,null,null,null,null,null,null,null,null,null,null,null,null,null,null,null,null,null,"C44003018","Playa Camarones"]
[null,null,null,null,null,null,null,null,null,null,null,null,null,null,null,null,null,null,null,null,null,"C27001003","Playa Capurganá"]
[null,null,null,null,null,null,null,null,null,null,null,null,null,null,null,null,null,null,null,null,null,"C13003072","Playa Castillogrande"]
[null,null,null,null,null,null,null,null,null,null,null,null,null,null,null,null,null,null,null,null,null,"C08002018","Playa Caño Dulce"]
[null,null,null,null,null,null,null,null,null,null,null,null,null,null,null,null,null,null,null,null,null,"C47003015","Playa Central Rodadero"]
[null,null,null,null,null,null,null,null,null,null,null,null,null,null,null,null,null,null,null,null,null,"C47003092","Playa Costa Verde"]
[null,null,null,null,null,null,null,null,null,null,null,null,null,null,null,null,null,null,null,null,null,"C47002013","Playa Cristal"]
[null,null,null,null,null,null,null,null,null,null,null,null,null,null,null,null,null,null,null,null,null,"C47002021","Playa Cristal (1)"]
[null,null,null,null,null,null,null,null,null,null,null,null,null,null,null,null,null,null,null,null,null,"C47002022","Playa Cristal (3)"]
[null,null,null,null,null,null,null,null,null,null,null,null,null,null,null,null,null,null,null,null,null,"C44003017","Playa Dibulla"]
[null,null,null,null,null,null,null,null,null,null,null,null,null,null,null,null,null,null,null,null,null,"P52002014","Playa El Morro"]
[null,null,null,null,null,null,null,null,null,null,null,null,null,null,null,null,null,null,null,null,null,"C70002048","Playa Frances"]
[null,null,null,null,null,null,null,null,null,null,null,null,null,null,null,null,null,null,null,null,null,"C47003049","Playa Grande - Taganga"]
[null,null,null,null,null,null,null,null,null,null,null,null,null,null,null,null,null,null,null,null,null,"P27002018","Playa Huina"]
[null,null,null,null,null,null,null,null,null,null,null,null,null,null,null,null,null,null,null,null,null,"P27002015","Playa Jurubidá (Frente)"]
[null,null,null,null,null,null,null,null,null,null,null,null,null,null,null,null,null,null,null,null,null,"C47002018","Playa La Piscina"]
[null,null,null,null,null,null,null,null,null,null,null,null,null,null,null,null,null,null,null,null,null,"C05001033","Playa Lechugal - DGI042"]
[null,null,null,null,null,null,null,null,null,null,null,null,null,null,null,null,null,null,null,null,null,"C47003098","Playa Los Cocos"]
[null,null,null,null,null,null,null,null,null,null,null,null,null,null,null,null,null,null,null,null,null,"P76002027","Playa Magüipi"]
[null,null,null,null,null,null,null,null,null,null,null,null,null,null,null,null,null,null,null,null,null,"C44002022","Playa Manaure"]
[null,null,null,null,null,null,null,null,null,null,null,null,null,null,null,null,null,null,null,null,null,"C44003026","Playa Mayapo"]
[null,null,null,null,null,null,null,null,null,null,null,null,null,null,null,null,null,null,null,null,null,"C47001011","Playa Mendihuaca"]
[null,null,null,null,null,null,null,null,null,null,null,null,null,null,null,null,null,null,null,null,null,"P52001024","Playa Mosquera"]
[null,null,null,null,null,null,null,null,null,null,null,null,null,null,null,null,null,null,null,null,null,"C47003020","Playa Municipal"]
[null,null,null,null,null,null,null,null,null,null,null,null,null,null,null,null,null,null,null,null,null,"C47002005","Playa Neguanje"]
[null,null,null,null,null,null,null,null,null,null,null,null,null,null,null,null,null,null,null,null,null,"P27002012","Playa Nuquí"]
[null,null,null,null,null,null,null,null,null,null,null,null,null,null,null,null,null,null,null,null,null,"P19002017","Playa Palmera"]
[null,null,null,null,null,null,null,null,null,null,null,null,null,null,null,null,null,null,null,null,null,"C44003035","Playa Palomino"]
[null,null,null,null,null,null,null,null,null,null,null,null,null,null,null,null,null,null,null,null,null,"P52001023","Playa Pasacaballos"]
[null,null,null,null,null,null,null,null,null,null,null,null,null,null,null,null,null,null,null,null,null,"C47002017","Playa Piscinita (Cañaveral)"]
[null,null,null,null,null,null,null,null,null,null,null,null,null,null,null,null,null,null,null,null,null,"C47003100","Playa Pozos Colorados"]
[null,null,null,null,null,null,null,null,null,null,null,null,null,null,null,null,null,null,null,null,null,"C47003109","Playa Pozos Colorados"]
[null,null,null,null,null,null,null,null,null,null,null,null,null,null,null,null,null,null,null,null,null,"C08001007","Playa Pradomar"]
[null,null,null,null,null,null,null,null,null,null,null,null,null,null,null,null,null,null,null,null,null,"C08002015","Playa Puerto Colombia"]
[null,null,null,null,null,null,null,null,null,null,null,null,null,null,null,null,null,null,null,null,null,"C08002019","Playa Punta Astillero"]
[null,null,null,null,null,null,null,null,null,null,null,null,null,null,null,null,null,null,null,null,null,"C44003010","Playa Riohacha"]
[null,null,null,null,null,null,null,null,null,null,null,null,null,null,null,null,null,null,null,null,null,"P52001020","Playa Sala Honda"]
[null,null,null,null,null,null,null,null,null,null,null,null,null,null,null,null,null,null,null,null,null,"C47003016","Playa Salguero"]
[null,null,null,null,null,null,null,null,null,null,null,null,null,null,null,null,null,null,null,null,null,"C47003102","Playa Salguero (1)"]
[null,null,null,null,null,null,null,null,null,null,null,null,null,null,null,null,null,null,null,null,null,"C47003101","Playa Salguero (3)"]
[null,null,null,null,null,null,null,null,null,null,null,null,null,null,null,null,null,null,null,null,null,"C08002007","Playa Santa Veronica (2)"]
[null,null,null,null,null,null,null,null,null,null,null,null,null,null,null,null,null,null,null,null,null,"C27001024","Playa Sapzurro"]
[null,null,null,null,null,null,null,null,null,null,null,null,null,null,null,null,null,null,null,null,null,"C88001018","Playa Sprat Bight Casablanca SB 03"]
[null,null,null,null,null,null,null,null,null,null,null,null,null,null,null,null,null,null,null,null,null,"C88001019","Playa Spratt Bight Corral  SB 04"]
[null,null,null,null,null,null,null,null,null,null,null,null,null,null,null,null,null,null,null,null,null,"C13003075","Playa Tierra Bomba (Punta Arenas)"]
[null,null,null,null,null,null,null,null,null,null,null,null,null,null,null,null,null,null,null,null,null,"C27001029","Playa Titumate"]
[null,null,null,null,null,null,null,null,null,null,null,null,null,null,null,null,null,null,null,null,null,"C70002037","Playa Tolú  Hotel Montecarlo"]
[null,null,null,null,null,null,null,null,null,null,null,null,null,null,null,null,null,null,null,null,null,"C70002036","Playa Tolú Hotel Playa Mar"]
[null,null,null,null,null,null,null,null,null,null,null,null,null,null,null,null,null,null,null,null,null,"P27002014","Playa Tribugá"]
[null,null,null,null,null,null,null,null,null,null,null,null,null,null,null,null,null,null,null,null,null,"C27001001","Playa Trigana"]
[null,null,null,null,null,null,null,null,null,null,null,null,null,null,null,null,null,null,null,null,null,"C05001015","Playa Uveros - DGI033"]
[null,null,null,null,null,null,null,null,null,null,null,null,null,null,null,null,null,null,null,null,null,"C05001001","Playa de Arboletes -DGI001"]
[null,null,null,null,null,null,null,null,null,null,null,null,null,null,null,null,null,null,null,null,null,"P76001025","Playa de Juan de Dios"]
[null,null,null,null,null,null,null,null,null,null,null,null,null,null,null,null,null,null,null,null,null,"C05002006","Playa de Necoclí - DGI007"]
[null,null,null,null,null,null,null,null,null,null,null,null,null,null,null,null,null,null,null,null,null,"C05003010","Playa de Turbo - DGI010"]
[null,null,null,null,null,null,null,null,null,null,null,null,null,null,null,null,null,null,null,null,null,"P76001023","Playa de la Plata"]
[null,null,null,null,null,null,null,null,null,null,null,null,null,null,null,null,null,null,null,null,null,"C23002006","Playa de los Venados"]
[null,null,null,null,null,null,null,null,null,null,null,null,null,null,null,null,null,null,null,null,null,"P52002031","Playa el Bajito"]
[null,null,null,null,null,null,null,null,null,null,null,null,null,null,null,null,null,null,null,null,null,"P52002037","Playa el Bajito 2"]
[null,null,null,null,null,null,null,null,null,null,null,null,null,null,null,null,null,null,null,null,null,"P52002032","Playa el Morro 2"]
[null,null,null,null,null,null,null,null,null,null,null,null,null,null,null,null,null,null,null,null,null,"P52002033","Playa el Morro 3"]
[null,null,null,null,null,null,null,null,null,null,null,null,null,null,null,null,null,null,null,null,null,"P52002034","Playa el Morro 4"]
[null,null,null,null,null,null,null,null,null,null,null,null,null,null,null,null,null,null,null,null,null,"P52002035","Playa el Morro 5"]
[null,null,null,null,null,null,null,null,null,null,null,null,null,null,null,null,null,null,null,null,null,"P52002036","Playa el Morro 6"]
[null,null,null,null,null,null,null,null,null,null,null,null,null,null,null,null,null,null,null,null,null,"C05002007","Playa el Totumo - DGI008"]
[null,null,null,null,null,null,null,null,null,null,null,null,null,null,null,null,null,null,null,null,null,"C05002005","Playa la Martina - DGI009"]
[null,null,null,null,null,null,null,null,null,null,null,null,null,null,null,null,null,null,null,null,null,"C23002009","Playa los Córdobas"]
[null,null,null,null,null,null,null,null,null,null,null,null,null,null,null,null,null,null,null,null,null,"C13003048","Playas de Bocagrande -14"]
[null,null,null,null,null,null,null,null,null,null,null,null,null,null,null,null,null,null,null,null,null,"C13003045","Playas de Crespo - 11 - DAMARENA 30"]
[null,null,null,null,null,null,null,null,null,null,null,null,null,null,null,null,null,null,null,null,null,"C13003041","Playas de Manzanillo del Mar - 5"]
[null,null,null,null,null,null,null,null,null,null,null,null,null,null,null,null,null,null,null,null,null,"C13003047","Playas de Marbella-13"]
[null,null,null,null,null,null,null,null,null,null,null,null,null,null,null,null,null,null,null,null,null,"C08001005","Playas de Salgar"]
[null,null,null,null,null,null,null,null,null,null,null,null,null,null,null,null,null,null,null,null,null,"C27001028","Playona la Caleta"]
[null,null,null,null,null,null,null,null,null,null,null,null,null,null,null,null,null,null,null,null,null,"C47003013","Pozos Colorados"]
[null,null,null,null,null,null,null,null,null,null,null,null,null,null,null,null,null,null,null,null,null,"P76001007","Puente Juanchaco -Ladrilleros"]
[null,null,null,null,null,null,null,null,null,null,null,null,null,null,null,null,null,null,null,null,null,"C88003019","Puente de los enamorados"]
[null,null,null,null,null,null,null,null,null,null,null,null,null,null,null,null,null,null,null,null,null,"P52002017","Puente el Morro"]
[null,null,null,null,null,null,null,null,null,null,null,null,null,null,null,null,null,null,null,null,null,"P52002016","Puente el Pindo"]
[null,null,null,null,null,null,null,null,null,null,null,null,null,null,null,null,null,null,null,null,null,"C44002025","Puerto Bolívar"]
[null,null,null,null,null,null,null,null,null,null,null,null,null,null,null,null,null,null,null,null,null,"C44003029","Puerto Brisa"]
[null,null,null,null,null,null,null,null,null,null,null,null,null,null,null,null,null,null,null,null,null,"C47003089","Puerto Córdoba (SPRC)"]
[null,null,null,null,null,null,null,null,null,null,null,null,null,null,null,null,null,null,null,null,null,"C47003087","Puerto Drumond"]
[null,null,null,null,null,null,null,null,null,null,null,null,null,null,null,null,null,null,null,null,null,"C23002003","Puerto Escondido"]
[null,null,null,null,null,null,null,null,null,null,null,null,null,null,null,null,null,null,null,null,null,"C44002024","Puerto Nuevo"]
[null,null,null,null,null,null,null,null,null,null,null,null,null,null,null,null,null,null,null,null,null,"C47003088","Puerto Nuevo"]
[null,null,null,null,null,null,null,null,null,null,null,null,null,null,null,null,null,null,null,null,null,"C08002021","Puerto Velero"]
[null,null,null,null,null,null,null,null,null,null,null,null,null,null,null,null,null,null,null,null,null,"C23001054","Punta Bello 1 (Punta Bolívar)"]
[null,null,null,null,null,null,null,null,null,null,null,null,null,null,null,null,null,null,null,null,null,"C44002021","Punta Cabo de la Vela"]
[null,null,null,null,null,null,null,null,null,null,null,null,null,null,null,null,null,null,null,null,null,"C13001012","Punta Canoa"]
[null,null,null,null,null,null,null,null,null,null,null,null,null,null,null,null,null,null,null,null,null,"C13001014","Punta Canoa 2"]
[null,null,null,null,null,null,null,null,null,null,null,null,null,null,null,null,null,null,null,null,null,"C88001001","Punta Hansa"]
[null,null,null,null,null,null,null,null,null,null,null,null,null,null,null,null,null,null,null,null,null,"C88001003","Punta Norte"]
[null,null,null,null,null,null,null,null,null,null,null,null,null,null,null,null,null,null,null,null,null,"C70001003","Punta Rincón"]
[null,null,null,null,null,null,null,null,null,null,null,null,null,null,null,null,null,null,null,null,null,"C08001004","Punta Roca"]
[null,null,null,null,null,null,null,null,null,null,null,null,null,null,null,null,null,null,null,null,null,"C23001052","Punta Rula - B. Cispata"]
[null,null,null,null,null,null,null,null,null,null,null,null,null,null,null,null,null,null,null,null,null,"P27002006","Quebrada Chocolatal (Arriba)"]
[null,null,null,null,null,null,null,null,null,null,null,null,null,null,null,null,null,null,null,null,null,"P76002099","R. Dagua"]
[null,null,null,null,null,null,null,null,null,null,null,null,null,null,null,null,null,null,null,null,null,"C47005034","Rinconada"]
[null,null,null,null,null,null,null,null,null,null,null,null,null,null,null,null,null,null,null,null,null,"C08002020","Rincón Hondo, Ciénaga- Pto Caiman"]
[null,null,null,null,null,null,null,null,null,null,null,null,null,null,null,null,null,null,null,null,null,"C44003027","Rio Ancho"]
[null,null,null,null,null,null,null,null,null,null,null,null,null,null,null,null,null,null,null,null,null,"C47001007","Rio Buritaca"]
[null,null,null,null,null,null,null,null,null,null,null,null,null,null,null,null,null,null,null,null,null,"C05002008","Rio Caimán Nuevo-DG019"]
[null,null,null,null,null,null,null,null,null,null,null,null,null,null,null,null,null,null,null,null,null,"C47003025","Rio Córdoba"]
[null,null,null,null,null,null,null,null,null,null,null,null,null,null,null,null,null,null,null,null,null,"C47001008","Rio Don Diego"]
[null,null,null,null,null,null,null,null,null,null,null,null,null,null,null,null,null,null,null,null,null,"C47003017","Rio Gaira"]
[null,null,null,null,null,null,null,null,null,null,null,null,null,null,null,null,null,null,null,null,null,"C47001009","Rio Guachaca"]
[null,null,null,null,null,null,null,null,null,null,null,null,null,null,null,null,null,null,null,null,null,"C05003014","Rio Guadualito-DG017"]
[null,null,null,null,null,null,null,null,null,null,null,null,null,null,null,null,null,null,null,null,null,"C47003021","Rio Manzanares (Puente Mayor)"]
[null,null,null,null,null,null,null,null,null,null,null,null,null,null,null,null,null,null,null,null,null,"P19001005","Rio Micay"]
[null,null,null,null,null,null,null,null,null,null,null,null,null,null,null,null,null,null,null,null,null,"C47002004","Rio Piedras"]
[null,null,null,null,null,null,null,null,null,null,null,null,null,null,null,null,null,null,null,null,null,"C44003014","Rio Rancheria"]
[null,null,null,null,null,null,null,null,null,null,null,null,null,null,null,null,null,null,null,null,null,"P19001006","Rio Saija"]
[null,null,null,null,null,null,null,null,null,null,null,null,null,null,null,null,null,null,null,null,null,"P19001017","Rio Saija antes de cabecera municipal"]
[null,null,null,null,null,null,null,null,null,null,null,null,null,null,null,null,null,null,null,null,null,"P19001007","Rio Timbiqui"]
[null,null,null,null,null,null,null,null,null,null,null,null,null,null,null,null,null,null,null,null,null,"C47003026","Rio Toribio"]
[null,null,null,null,null,null,null,null,null,null,null,null,null,null,null,null,null,null,null,null,null,"C05002009","Rio Turbo-DG018"]
[null,null,null,null,null,null,null,null,null,null,null,null,null,null,null,null,null,null,null,null,null,"C88002003","Rocky Cay"]
[null,null,null,null,null,null,null,null,null,null,null,null,null,null,null,null,null,null,null,null,null,"C88002008","Rocky cay  RC 01 (Little Hill)"]
[null,null,null,null,null,null,null,null,null,null,null,null,null,null,null,null,null,null,null,null,null,"C88002009","Rocky cay  RC 02 (Decameron)"]
[null,null,null,null,null,null,null,null,null,null,null,null,null,null,null,null,null,null,null,null,null,"C88002010","Rocky cay  RC 03 Cocoplum"]
[null,null,null,null,null,null,null,null,null,null,null,null,null,null,null,null,null,null,null,null,null,"C88001021","Rose Cay ( Acuario HC 02)"]
[null,null,null,null,null,null,null,null,null,null,null,null,null,null,null,null,null,null,null,null,null,"C88001022","Rose Cay (Zona de parqueo lancha)"]
[null,null,null,null,null,null,null,null,null,null,null,null,null,null,null,null,null,null,null,null,null,"P76002076","Río  Anchicayá"]
[null,null,null,null,null,null,null,null,null,null,null,null,null,null,null,null,null,null,null,null,null,"P76002077","Río  Dagua"]
[null,null,null,null,null,null,null,null,null,null,null,null,null,null,null,null,null,null,null,null,null,"C27001026","Río Acandí"]
[null,null,null,null,null,null,null,null,null,null,null,null,null,null,null,null,null,null,null,null,null,"P27002021","Río Atrato en Quibdó"]
[null,null,null,null,null,null,null,null,null,null,null,null,null,null,null,null,null,null,null,null,null,"P19001008","Río Bubuey (La Trinidad"]
[null,null,null,null,null,null,null,null,null,null,null,null,null,null,null,null,null,null,null,null,null,"P76003028","Río Cajambre"]
[null,null,null,null,null,null,null,null,null,null,null,null,null,null,null,null,null,null,null,null,null,"C44003011","Río Cañas"]
[null,null,null,null,null,null,null,null,null,null,null,null,null,null,null,null,null,null,null,null,null,"P52002010","Río Chagui"]
[null,null,null,null,null,null,null,null,null,null,null,null,null,null,null,null,null,null,null,null,null,"C47005030","Río Fundación"]
[null,null,null,null,null,null,null,null,null,null,null,null,null,null,null,null,null,null,null,null,null,"P19002010","Río Guajui"]
[null,null,null,null,null,null,null,null,null,null,null,null,null,null,null,null,null,null,null,null,null,"P19002009","Río Guapi (Cabecera)"]
[null,null,null,null,null,null,null,null,null,null,null,null,null,null,null,null,null,null,null,null,null,"P52001017","Río Iscuandé (La soledad)"]
[null,null,null,null,null,null,null,null,null,null,null,null,null,null,null,null,null,null,null,null,null,"P27002019","Río Jella"]
[null,null,null,null,null,null,null,null,null,null,null,null,null,null,null,null,null,null,null,null,null,"C44003012","Río Jerez"]
[null,null,null,null,null,null,null,null,null,null,null,null,null,null,null,null,null,null,null,null,null,"C23002008","Río Mangle"]
[null,null,null,null,null,null,null,null,null,null,null,null,null,null,null,null,null,null,null,null,null,"C47003111","Río Manzanares (Bonda)"]
[null,null,null,null,null,null,null,null,null,null,null,null,null,null,null,null,null,null,null,null,null,"C47003090","Río Manzanares (Puente Carrera 4)"]
[null,null,null,null,null,null,null,null,null,null,null,null,null,null,null,null,null,null,null,null,null,"C47003093","Río Manzanares - Puente La Tenería"]
[null,null,null,null,null,null,null,null,null,null,null,null,null,null,null,null,null,null,null,null,null,"P52003009","Río Mataje"]
[null,null,null,null,null,null,null,null,null,null,null,null,null,null,null,null,null,null,null,null,null,"P76003029","Río Mayorquín"]
[null,null,null,null,null,null,null,null,null,null,null,null,null,null,null,null,null,null,null,null,null,"P52002012","Río Mejicano"]
[null,null,null,null,null,null,null,null,null,null,null,null,null,null,null,null,null,null,null,null,null,"C47001012","Río Mendihuaca"]
[null,null,null,null,null,null,null,null,null,null,null,null,null,null,null,null,null,null,null,null,null,"P52003010","Río Mira"]
[null,null,null,null,null,null,null,null,null,null,null,null,null,null,null,null,null,null,null,null,null,"P76003032","Río Naya"]
[null,null,null,null,null,null,null,null,null,null,null,null,null,null,null,null,null,null,null,null,null,"P27002008","Río Nuquí"]
[null,null,null,null,null,null,null,null,null,null,null,null,null,null,null,null,null,null,null,null,null,"C44003013","Río Palomino"]
[null,null,null,null,null,null,null,null,null,null,null,null,null,null,null,null,null,null,null,null,null,"P52001014","Río Patianga + Satinga"]
[null,null,null,null,null,null,null,null,null,null,null,null,null,null,null,null,null,null,null,null,null,"P76002078","Río Potedo"]
[null,null,null,null,null,null,null,null,null,null,null,null,null,null,null,null,null,null,null,null,null,"P76003001","Río Raposo - El Pasadero (dulce)"]
[null,null,null,null,null,null,null,null,null,null,null,null,null,null,null,null,null,null,null,null,null,"P52002013","Río Rosario"]
[null,null,null,null,null,null,null,null,null,null,null,null,null,null,null,null,null,null,null,null,null,"C47005031","Río Sevilla"]
[null,null,null,null,null,null,null,null,null,null,null,null,null,null,null,null,null,null,null,null,null,"C23001008","Río Sinú (Lorica)"]
[null,null,null,null,null,null,null,null,null,null,null,null,null,null,null,null,null,null,null,null,null,"C44003028","Río Tapía - Puente Bomba"]
[null,null,null,null,null,null,null,null,null,null,null,null,null,null,null,null,null,null,null,null,null,"P19001009","Río Timbiqui antes de la cabecera municipal"]
[null,null,null,null,null,null,null,null,null,null,null,null,null,null,null,null,null,null,null,null,null,"P27002009","Río Valle"]
[null,null,null,null,null,null,null,null,null,null,null,null,null,null,null,null,null,null,null,null,null,"P76003035","Río Yurumanguí"]
[null,null,null,null,null,null,null,null,null,null,null,null,null,null,null,null,null,null,null,null,null,"P52001015","Sala Honda Brazo Patia"]
[null,null,null,null,null,null,null,null,null,null,null,null,null,null,null,null,null,null,null,null,null,"C13003104","Salida Bocana"]
[null,null,null,null,null,null,null,null,null,null,null,null,null,null,null,null,null,null,null,null,null,"C13002016","Salida Canal del aeropuerto"]
[null,null,null,null,null,null,null,null,null,null,null,null,null,null,null,null,null,null,null,null,null,"C23002001","San Bernardo del Viento"]
[null,null,null,null,null,null,null,null,null,null,null,null,null,null,null,null,null,null,null,null,null,"C88003003","San Felipe"]
[null,null,null,null,null,null,null,null,null,null,null,null,null,null,null,null,null,null,null,null,null,"P76001022","San Rafael (dulce) - Río San Juan"]
[null,null,null,null,null,null,null,null,null,null,null,null,null,null,null,null,null,null,null,null,null,"C88003010","Santa Catalina"]
[null,null,null,null,null,null,null,null,null,null,null,null,null,null,null,null,null,null,null,null,null,"P52001026","Satinga Descargas"]
[null,null,null,null,null,null,null,null,null,null,null,null,null,null,null,null,null,null,null,null,null,"C13003040","Segunda punta de isla Tierra Bomba entrando por Escollera"]
[null,null,null,null,null,null,null,null,null,null,null,null,null,null,null,null,null,null,null,null,null,"C88002011","Sound Bay 01 SL 01 (San Jose)"]
[null,null,null,null,null,null,null,null,null,null,null,null,null,null,null,null,null,null,null,null,null,"C88002012","Sound Bay SL 02 (El Paso)"]
[null,null,null,null,null,null,null,null,null,null,null,null,null,null,null,null,null,null,null,null,null,"C88001017","Spratt bight Playa tone SB 02 (Tone)"]
[null,null,null,null,null,null,null,null,null,null,null,null,null,null,null,null,null,null,null,null,null,"C88001016","Spratt bight playas SB 01 (Pescadero)"]
[null,null,null,null,null,null,null,null,null,null,null,null,null,null,null,null,null,null,null,null,null,"C47003028","Taganga T1"]
[null,null,null,null,null,null,null,null,null,null,null,null,null,null,null,null,null,null,null,null,null,"C47005061","Tasajera"]
[null,null,null,null,null,null,null,null,null,null,null,null,null,null,null,null,null,null,null,null,null,"C13003089","Tierra Bomba (Mar afuera)"]
[null,null,null,null,null,null,null,null,null,null,null,null,null,null,null,null,null,null,null,null,null,"C47004009","UNIMAG"]
[null,null,null,null,null,null,null,null,null,null,null,null,null,null,null,null,null,null,null,null,null,"C08003042","Urb. La Playa, Centro C. Mallorquín"]
[null,null,null,null,null,null,null,null,null,null,null,null,null,null,null,null,null,null,null,null,null,"C13003090","Varadero"]
[null,null,null,null,null,null,null,null,null,null,null,null,null,null,null,null,null,null,null,null,null,"P19003005","Vertimiento Gorgona"]
[null,null,null,null,null,null,null,null,null,null,null,null,null,null,null,null,null,null,null,null,null,"C44003016","Vertimiento Riohacha"]
[null,null,null,null,null,null,null,null,null,null,null,null,null,null,null,null,null,null,null,null,null,"C88002002","Yellow Moon"]

{"sheet":"configuracion","index":5,"n_rows":1,"n_cols":6,"rows_kept":1,"cut":false,"hidden":true,"merged":[]}
["General","https://argos.invemar.org.co/api/","Nodo Estaciones ",40,"Estaciones ",2050]